Cogmind - Beta 13 X2 @@@ ROGUE MODE // 2024.01.06 @ 18:12:14 Player: alice_fexa Result: Heading to fleet! Performance ------------- Evolutions (9) 4500 Regions Visited (32) 6400 Robots Destroyed (387) 1935 Value Destroyed (23869) 23869 Prototype IDs (290) 5800 Alien Tech Used (12) 2400 Bonus (55339) 55339 TOTAL SCORE: 100243 Bonus ------- High Alert Combat Kills 4281 Follower Combat Kills 2680 Met Data Miner 300 Met Warlord at Base 500 MAIN.C Attacked Warlord 500 Warlord Defense Kills 1108 Built Enhanced Grunts 300 Met R17 at Cetus 500 Used Core Reset Matrix 3000 Recovered Sigix Corpse 2000 Destroyed MAIN.C Guards 500 Met MAIN.C 5000 Destroyed MAIN.C Shell 5000 Destroyed MAIN.C 10000 Met Architect 300 Destroyed A8 300 Destroyed A6 400 Destroyed A5 500 Destroyed A4 700 Destroyed A3 800 Destroyed A2 1000 Destroyed Architect 15000 Win 3000 Friendly Fire -2330 Cogmind --------- Core Integrity 434/1600 Matter 300/300 Energy 1479/1481 System Corruption 0% Temperature Cool (6) Movement Treading (177) Ox1 Location To Fleet Rendezvous Parts ------- > --- POWER (2) -------- Point-Quantum Reactor > --- PROPULSION (5) --- Treaded Siege-Antigrav Exoskeleton > --- UTILITY (15) ----- Desublimator Experimental Power Amplifier High-capacity Storage Unit Enhanced Optical Array Experimental Targeting Computer Experimental Targeting Computer Experimental Targeting Computer Experimental Core Analyzer Improved Armor Integrity Analyzer Centrium Heavy Armor Plating Centrium Heavy Armor Plating Experimental Powered Armor AEGIS Remote Shield > --- WEAPON (4) ------- Hypercooled Linear Accelerator Hpw. Ballistic Hardcell Construct/C > --- INVENTORY (22) --- Improved Quantum Reactor Desublimator Experimental Energy Well (600) Experimental Energy Well (600) Experimental Energy Well (600) Experimental Matter Compressor (500) Experimental Matter Compressor (500) Experimental Matter Compressor (500) Experimental Matter Compressor (500) Advanced Kinecellerator Advanced Kinecellerator Advanced Weapon Cycler Advanced Weapon Cycler Experimental Weapon Cycler Experimental Phase Shifter Experimental Phase Shifter Hypervelocity Linear Accelerator Graviton Cannon Sigix Corpse Peak State ------------ > --- POWER ------------ Point-Quantum Reactor > --- PROPULSION ------- Treaded Siege-Antigrav Exoskeleton > --- UTILITY ---------- Desublimator Experimental Power Amplifier High-capacity Storage Unit Enhanced Optical Array Experimental Targeting Computer Experimental Targeting Computer Experimental Targeting Computer Experimental Core Analyzer Improved Armor Integrity Analyzer Advanced Kinecellerator Experimental Weapon Cycler Experimental Phase Shifter Centrium Heavy Armor Plating AEGIS Remote Shield > --- WEAPON ----------- Hypercooled Linear Accelerator Hpw. Ballistic Hardcell Construct/C > --- INVENTORY -------- Improved Quantum Reactor Desublimator Experimental Energy Well Experimental Energy Well Experimental Energy Well Experimental Matter Compressor Experimental Matter Compressor Experimental Matter Compressor Experimental Matter Compressor Advanced Kinecellerator Advanced Weapon Cycler Experimental Phase Shifter Centrium Heavy Armor Plating Experimental Powered Armor Advanced Force Field High-powered Transdimensional Reconstructor High-powered Transdimensional Reconstructor High-powered Transdimensional Reconstructor Hypervelocity Linear Accelerator Graviton Cannon Gamma Refractor [Rating: 234] Favorites ----------- Power Constructs Engine Angular Momentum Engine Power Core Cooled Fission Core Reactor Constructs Propulsion Constructs Treads Constructs Wheel Wheel Utility Armored Scrap Engine Device Armored Scrap Engine Storage High-capacity Storage Unit Processor Enhanced Optical Array Hackware Advanced Hacking Suite Protection Medium Regenerative Plating Weapon Constructs Energy Gun Improved Medium Laser Energy Cannon Phase Cannon Ballistic Gun Improved Assault Rifle Ballistic Cannon Constructs Launcher Heavy Shock Bomb Launcher Slashing Weapon Ionic Axe Piercing Weapon Plasma Lance Build | -11 -10 -10 -9 -9 -8 -8 -8 -6 -6 -6 -6 -6 -6 -5 -5 -5 -5 -5 -4 -4 -4 -4 -4 -4 -3 -3 -2 -2 -2 -1 -1 -1 ------- Run | Yrd Mat Min Mat Min Mat Sto Rec Fac Was Fac Low Low Dat Pro Fac Upp Upp War Pro Fac Ext Cet Arc Hub Res Qua Res Tes Sec Acc Com Ac0 Slots Evolved 18 | . . . 2 . 2 . . 4 . . . . . . 2 . . . . 2 . . . . 2 . 2 . . 2 . . Power 1 | . . . . . . . . . . . . . . . . . . . . 1 . . . . . . . . . . . . Propulsion 3 | . . . 1 . . . . 1 . . . . . . . . . . . 1 . . . . . . . . . . . . Utility 13 | . . . 1 . 2 . . 2 . . . . . . 2 . . . . . . . . . 2 . 2 . . 2 . . Weapon 1 | . . . . . . . . 1 . . . . . . . . . . . . . . . . . . . . . . . . Parts Attached 571 | 7 11 1 34 10 17 10 15 24 5 . 1 6 1 . 23 9 9 9 3 11 19 14 . 6 37 45 43 35 61 25 47 33 Power 20 | 2 1 1 4 1 1 1 1 1 . . . . . . 3 . . 2 . 2 . . . . . . . . . . . . Engine 12 | 2 1 1 4 . . 1 1 1 . . . . . . 1 . . . . . . . . . . . . . . . . . Core 5 | . . . . 1 1 . . . . . . . . . 2 . . 1 . . . . . . . . . . . . . . Reactor 3 | . . . . . . . . . . . . . . . . . . 1 . 2 . . . . . . . . . . . . Propulsion 30 | 2 2 . 13 2 5 4 1 1 . . . . . . . . . . . . . . . . . . . . . . . . Treads 19 | 1 1 . 11 . 3 3 . . . . . . . . . . . . . . . . . . . . . . . . . . Leg . | . . . . . . . . . . . . . . . . . . . . . . . . . . . . . . . . . Wheel 11 | 1 1 . 2 2 2 1 1 1 . . . . . . . . . . . . . . . . . . . . . . . . Hover . | . . . . . . . . . . . . . . . . . . . . . . . . . . . . . . . . . Flight . | . . . . . . . . . . . . . . . . . . . . . . . . . . . . . . . . . Utility 426 | 1 5 . 6 3 5 2 9 14 3 . 1 3 . . 18 4 6 5 1 6 17 12 . 5 35 42 38 35 56 25 38 31 Device 303 | . 2 . 2 1 3 1 6 11 3 . 1 2 . . 13 3 4 4 1 5 11 3 . 3 29 32 34 26 41 20 20 22 Storage 22 | 1 2 . . . . . 1 . . . . . . . . . . . . 1 . 1 . . 1 . . 3 4 1 3 4 Processor 21 | . . . . . . . 1 . . . . . . . 3 . . . . . 1 . . . 1 1 3 1 2 . 7 1 Hackware 4 | . . . . . . . . . . . . . . . 1 . . 1 . . . . . . . . . . . 2 . . Protection 76 | . 1 . 4 2 2 1 1 3 . . . 1 . . 1 1 2 . . . 5 8 . 2 4 9 1 5 9 2 8 4 Artifact . | . . . . . . . . . . . . . . . . . . . . . . . . . . . . . . . . . Weapon 95 | 2 3 . 11 4 6 3 4 8 2 . . 3 1 . 2 5 3 2 2 3 2 2 . 1 2 3 5 . 5 . 9 2 Energy Gun 12 | 1 3 . 3 2 2 . 1 . . . . . . . . . . . . . . . . . . . . . . . . . Energy Cannon 23 | . . . 4 . 2 2 . 3 . . . 1 1 . 1 2 2 1 . 3 1 . . . . . . . . . . . Ballistic Gun 10 | 1 . . 3 1 2 . 2 . . . . . . . . . . . . . . . . . . . . . 1 . . . Ballistic Cannon 11 | . . . . . . . . . . . . . . . . . . . . . . . . . . 1 2 . 2 . 4 2 Launcher 12 | . . . 1 1 . . . . 1 . . 1 . . . 2 1 1 . . 1 1 . . . . . . . . 2 . Special Weapon . | . . . . . . . . . . . . . . . . . . . . . . . . . . . . . . . . . Impact Weapon . | . . . . . . . . . . . . . . . . . . . . . . . . . . . . . . . . . Slashing Weapon 17 | . . . . . . . . 4 1 . . 1 . . 1 1 . . 1 . . 1 . 1 2 2 2 . . . . . Piercing Weapon 10 | . . . . . . 1 1 1 . . . . . . . . . . 1 . . . . . . . 1 . 2 . 3 . Special Melee Weapon . | . . . . . . . . . . . . . . . . . . . . . . . . . . . . . . . . . Unidentified Prototypes 37 | . . . 4 . 1 1 . 2 . . . 1 . . . . . 2 . . . 3 . 1 1 7 5 3 . . 4 2 Parts Lost 24 | . 2 . 1 2 1 1 . . . . . . . . . . . . 1 . . . . . 3 1 . . 4 1 5 2 Power . | . . . . . . . . . . . . . . . . . . . . . . . . . . . . . . . . . Propulsion 2 | . 1 . . 1 . . . . . . . . . . . . . . . . . . . . . . . . . . . . Utility 21 | . 1 . 1 1 1 1 . . . . . . . . . . . . 1 . . . . . 2 1 . . 4 1 5 2 Weapon 1 | . . . . . . . . . . . . . . . . . . . . . . . . . 1 . . . . . . . Highest Loss Streak 4 | . 2 . 1 2 1 1 . . . . . . . . . . . . 1 . . . . . 1 1 . . 2 1 4 1 To Critical Strikes . | . . . . . . . . . . . . . . . . . . . . . . . . . . . . . . . . . Average Slot Usage (%) 72 | . 98 100 99 99 98 99 67 68 66 66 66 64 63 68 71 71 72 71 72 66 65 60 60 59 62 62 65 65 65 68 62 68 Engine 3 | . 14 14 10 10 . 4 9 6 6 6 6 6 6 6 1 . . . . 1 1 . . . . . . . . . . . Reactor 2 | . . . . . . . . . . . . . . . . . . 1 5 2 2 5 5 5 4 4 4 4 4 3 3 3 Treads 4 | . 14 14 21 22 18 17 1 . 6 6 . . . . . . . . . . . . . 1 . . . . . . . 3 Wheel 2 | . 13 14 11 10 9 9 2 2 . . . . . . . . . . . . . . . . 1 1 . . . . . . Hover 1 | . . . . . . . . 2 . . 5 6 6 6 5 5 5 5 5 . 1 . . . . . . . 1 2 1 . Device 17 | . 5 14 11 11 26 27 18 20 25 26 26 25 25 25 18 15 15 16 20 19 18 12 15 14 17 17 20 20 18 18 20 21 Storage 6 | . 14 14 11 11 9 9 9 6 6 6 6 6 6 6 5 5 5 5 5 5 5 5 5 5 4 4 4 4 4 3 4 3 Processor 12 | . . . . . . . . 6 6 6 6 6 6 6 16 16 16 16 16 15 15 15 15 15 18 18 19 20 19 19 17 23 Protection 4 | . 6 . 11 10 9 9 8 6 . . . . . . . . . . . . 1 7 5 4 4 3 4 3 5 6 5 3 Energy Gun 1 | . 14 14 2 10 8 9 3 . . . . . . . . . . . . . . . . . . . . . . . . . Energy Cannon 1 | . . . 9 . 9 8 . 3 6 4 . . 1 6 4 3 4 2 . 3 2 . . . . . . . . . . . Ballistic Gun 2 | . 14 14 9 10 . . 4 . . . . . . . . . . . . . . . . . . . . . . . . . Ballistic Cannon 3 | . . . . . . . . 4 . 1 6 6 6 6 5 5 5 5 5 5 5 5 5 5 4 4 4 4 4 3 3 7 Slashing Weapon 1 | . . . . . . . . 3 3 6 6 5 6 6 5 5 5 5 5 5 5 2 5 4 3 4 3 . . . . . Naked Turns . | . . . . . . . . . . . . . . . . . . . . . . . . . . . . . . . . . Heaviest Build 211 | 13 88 88 98 95 98 101 101 52 47 48 48 56 56 56 64 58 58 61 63 98 109 116 116 116 127 116 125 144 137 121 180 211 Greatest Support 235 | 20 20 16 16 16 10 12 42 96 96 96 65 65 65 65 65 65 65 65 65 133 129 141 137 137 124 216 216 204 204 204 235 189 Greatest Overweight (x) 10 | 1 5 5 9 9 9 10 8 3 . . . . . . . . . . . . 1 1 1 . 1 1 . . . 1 2 1 Average Overweight (x) 1 | . 1 5 8 8 9 8 3 . . . . . . . . . . . . . . . . . . . . . . . . . Largest Inventory Capacity 25 | 8 25 25 25 25 25 25 25 15 15 15 15 15 15 15 15 15 15 15 15 20 20 20 20 20 20 20 20 20 22 22 22 22 Average Capacity 20 | 6 12 25 25 25 25 25 24 15 15 15 15 15 15 15 15 15 15 15 15 17 20 20 20 20 20 20 20 20 20 22 22 22 Most Carried 25 | 4 12 25 25 25 25 25 25 15 15 15 15 15 15 15 15 15 15 15 15 20 20 20 20 20 20 20 20 20 22 22 22 22 Average Carried 19 | 2 7 22 24 24 24 24 22 14 15 14 15 14 15 15 14 14 14 14 14 16 19 19 20 20 19 19 19 19 19 21 21 21 Final Capacity 25 | 8 25 25 25 25 25 25 15 15 15 15 15 15 15 15 15 15 15 15 15 20 20 20 20 20 20 20 20 20 22 22 22 22 Final Carried 25 | 4 12 25 25 25 25 25 13 15 15 15 15 15 15 15 15 15 15 15 14 18 20 20 20 20 18 20 19 19 22 22 22 19 Scrap Engine Consumption 289 | . . . . . . . 24 17 3 2 . 2 . . 9 . . 14 2 12 20 22 8 5 14 38 7 3 8 9 70 . Constructs Created 5 | . . . . . . . 2 . . . . . . . . . . . . 2 . . . . . . 1 . . . . . Constructs Modified 130 | . . . . . . . 6 7 . 2 1 . 1 . 1 1 . . . 11 13 11 5 1 5 19 . 1 4 5 36 . Class Distribution -------------------- 22% | Construct 19% | Scavenger-Gunner 14% | Scavenger-Mutant 8% | Mutant 8% | Scavenger-Construct 7% | Scout 5% | Commander-Construct 3% | Commander-Scout Dominant Class ---------------- Mutant | -10/Materials Scavenger-Mutant | -10/Mines Scavenger-Mutant | -9/Materials Mutant | -9/Mines Scavenger-Mutant | -8/Materials Scavenger-Mutant | -8/Storage Construct | -8/Recycling Construct | -6/Factory Construct | -6/Waste Construct | -6/Factory Construct | -6/Lower Caves Construct | -6/Lower Caves Construct | -6/Data Miner Construct | -5/Proximity Caves Scout | -5/Factory Scout | -5/Upper Caves Scout | -5/Upper Caves Commander-Scout | -5/Warlord Commander-Scout | -4/Proximity Caves Assassin | -4/Factory Commander-Construct | -4/Extension Commander-Construct | -4/Cetus Commander-Construct | -4/Archives Commander-Construct | -4/Hub_04(d) Construct | -3/Research Construct | -3/Quarantine Scavenger-Construct | -2/Research Scavenger-Construct | -2/Testing Scavenger-Construct | -2/Section 7 Alien-Assassin | -1/Access Scavenger-Gunner | -1/Command Scavenger-Gunner | -1/Access_0 Resources | -11 -10 -10 -9 -9 -8 -8 -8 -6 -6 -6 -6 -6 -6 -5 -5 -5 -5 -5 -4 -4 -4 -4 -4 -4 -3 -3 -2 -2 -2 -1 -1 -1 ----------- Run | Yrd Mat Min Mat Min Mat Sto Rec Fac Was Fac Low Low Dat Pro Fac Upp Upp War Pro Fac Ext Cet Arc Hub Res Qua Res Tes Sec Acc Com Ac0 Matter Collected 20035 | 215 401 94 599 142 166 110 101 250 167 . 311 116 . 29 191 168 109 214 85 130 327 291 52 151 1980 1969 889 591 2154 1103 2497 4433 Remotely 3755 | . . . . . . . . . . . . . . . . . . . . . . . . . 423 323 . 170 509 445 736 1149 Salvage Created 25378 | . 694 319 1655 202 588 564 141 235 167 . 58 104 . 14 234 101 168 503 310 21 848 687 167 315 1668 655 804 898 2996 2283 4866 3113 Parts 1183 | . 33 21 92 10 26 32 4 17 . . 1 6 . 4 12 6 14 27 8 3 33 24 10 9 94 41 42 41 152 152 164 105 Haulers Intercepted 17 | . 1 . 5 . . 3 . . . . . . . . . . . . . . 1 . . 2 . . 1 2 1 1 . . Recyclers Shooed 9 | . 1 2 2 . . . 1 . . . . . . . . . . . . . . . . . . . . 1 1 . 1 . Parts Field Recycled . | . . . . . . . . . . . . . . . . . . . . . . . . . . . . . . . . . Retrieved Matter . | . . . . . . . . . . . . . . . . . . . . . . . . . . . . . . . . . Parts Self-Destructed 51 | . . . . . . . . . . . 1 5 . 4 . 4 16 . 21 . . . . . . . . . . . . . Prevented 3 | . . . . . . . . . . . 1 . . . . . 2 . . . . . . . . . . . . . . . Kills | -11 -10 -10 -9 -9 -8 -8 -8 -6 -6 -6 -6 -6 -6 -5 -5 -5 -5 -5 -4 -4 -4 -4 -4 -4 -3 -3 -2 -2 -2 -1 -1 -1 ------- Run | Yrd Mat Min Mat Min Mat Sto Rec Fac Was Fac Low Low Dat Pro Fac Upp Upp War Pro Fac Ext Cet Arc Hub Res Qua Res Tes Sec Acc Com Ac0 Combat Hostiles Destroyed 310 | . 15 7 28 8 9 6 1 5 1 . . 4 . 2 2 3 6 10 4 . 9 7 1 1 21 9 8 6 34 28 24 51 Melee 1 | . . . . . . . . . . . . . . . . . . . . . 1 . . . . . . . . . . . Guns 31 | . 10 7 10 2 1 . 1 . . . . . . . . . . . . . . . . . . . . . . . . . Cannons 241 | . . . 17 3 5 6 . 5 1 . . 1 . 2 2 . 2 4 4 . 6 . 1 1 21 9 8 6 34 28 24 51 AOE 26 | . 5 . . 3 . . . . . . . 3 . . . 3 4 4 . . . 4 . . . . . . . . . . Classes Destroyed 24 | . 5 1 4 1 1 . . 1 1 . . . . 1 . . . 4 . . 1 . . . . . 1 . 3 . . . Worker 6 | . . . 1 . . . . . . . . . . . . . . . . . . . . . 1 . . . 2 1 1 . Builder 11 | . . 1 . . . . . 1 . . . . . . . . . . . . 1 . . . 1 . . 2 3 2 . . Tunneler 3 | . . . . 1 1 . . . . . . . . . . . . . . 1 . . . . . . . . . . . . Hauler 17 | . 1 . 5 . . 3 . . . . . . . . . . . . . . 1 . . 2 . . 1 2 1 1 . . Recycler 13 | . 2 1 1 . . 1 1 . . . . . . . 1 . . . . . . . . . . . . 1 1 2 2 . Mechanic 2 | . . . . . . . . . . . . . . . . . . . . . . . . . . . . . 1 . 1 . Operator 5 | . . . 2 . . . . . . . . . . . . . . . . . . . 2 . . . . . . . 1 . Drone 2 | . . . . . . . . . . . . . . 2 . . . . . . . . . . . . . . . . . . Watcher 29 | . 1 . 4 . 3 . . 2 . . . . . . 1 . . . . . 2 2 . . 3 . 4 . 3 4 . . Swarmer 43 | . 6 3 4 3 . . . 3 . . . 4 . . 1 3 4 3 . . . 2 . 1 . . . . . 6 . . Cutter 6 | . . . . . . . . . . . . . . . . . . . . . . . . . . . . . 6 . . . Grunt 78 | . 9 4 16 4 5 1 . . . . . . . . . . . 2 4 . 4 . . . 6 . 3 . 8 . 12 . Brawler 3 | . . . . . . . . . . . . . . . . . . 1 . . . . . . . . . . 1 . 1 . Duelist 9 | . . . 1 1 . . . . . . . . . . . . . 1 . . . . . . . . 2 . 2 . 2 . Protector 2 | . . . . . . . . . . . . . . . . . . 1 . . . . . . . . . . 1 . . . Sentry 23 | . . . 7 . 3 4 1 . . . . . . . . . . . . . 3 . 1 . 2 . 1 . 1 . . . Specialist 5 | . . . . . . . . . . . . . . . . . . 1 . . . . . . 4 . . . . . . . Hunter 15 | . . . . . 1 1 . . . . . . . . . . . . . . . . . . . . . 3 4 4 2 . Programmer 45 | . . . . . . . . 2 . . . . . . 1 . 2 . . . 1 . . . 9 . . 3 8 18 1 . Heavy 2 | . . . . . . . . . . . . . . . . . . . . . . . . . . . . . 2 . . . Behemoth 1 | . . . . . . . . . . . . . . . . . . . . . 1 . . . . . . . . . . . Compactor 1 | . . . . . . . . . 1 . . . . . . . . . . . . . . . . . . . . . . . Cetus Guard 5 | . . . . . . . . . . . . . . . . . . . . . . 5 . . . . . . . . . . Quarantine Guard 9 | . . . . . . . . . . . . . . . . . . . . . . . . . . 9 . . . . . . M Guard 2 | . . . . . . . . . . . . . . . . . . . . . . . . . . . . . . . 2 . Enhanced Grunt 33 | . . . . . . . . . . . . . . . . . . . . . . . . 1 . . . . . . . 32 Enhanced Sentry 4 | . . . . . . . . . . . . . . . . . . . . . . . . . . . . . . . . 4 Enhanced Hunter 8 | . . . . . . . . . . . . . . . . . . . . . . . . . . . . . . . . 8 Combat Programmer 2 | . . . . . . . . . . . . . . . . . . . . . . . . . . . . . . . 2 . Striker 1 | . . . . . . . . . . . . . . . . . . . . . . . . . . . 1 . . . . . Executioner 3 | . . . . . . . . . . . . . . . . . . 1 . . . . . . . . 1 . 1 . . . Thug 1 | . . . . . . . . . . . . . . . . . . . . . . 1 . . . . . . . . . . Best Kill Streak 15 | . 3 4 4 3 4 2 1 3 1 . . 4 . 2 2 3 4 5 3 1 3 4 2 3 6 2 3 3 6 15 9 3 Combat Bots Only 10 | . 3 3 4 3 4 2 1 3 1 . . 4 . 2 1 3 4 5 3 . 2 3 1 1 6 2 3 3 6 10 8 3 Max Kills in Single Turn 4 | . 2 1 1 1 1 1 1 2 1 . . 3 . 2 1 2 4 3 1 1 2 2 2 1 1 1 1 1 2 2 2 1 Gunslinging . | . . . . . . . . . . . . . . . . . . . . . . . . . . . . . . . . . Exploded 4 | . 2 . . 1 . . . . . . . 3 . . . 2 4 3 . . . 1 . . . . . . . . . . Melee 1 | . . . . . . . . . . . . . . . . . . . . . 1 . . . . . . . . . . . Uniques/NPCs Destroyed 10 | . . . . . . . . . . . . . . . . . . . . . . 1 . . . . . . . . 2 7 A7 (-4/Cetus) MAIN.C Shell (-1/Command) MAIN.C (-1/Command) A8 (-1/Access_0) A6 (-1/Access_0) A2 (-1/Access_0) A5 (-1/Access_0) Architect (-1/Access_0) A4 (-1/Access_0) A3 (-1/Access_0) Combat | -11 -10 -10 -9 -9 -8 -8 -8 -6 -6 -6 -6 -6 -6 -5 -5 -5 -5 -5 -4 -4 -4 -4 -4 -4 -3 -3 -2 -2 -2 -1 -1 -1 -------- Run | Yrd Mat Min Mat Min Mat Sto Rec Fac Was Fac Low Low Dat Pro Fac Upp Upp War Pro Fac Ext Cet Arc Hub Res Qua Res Tes Sec Acc Com Ac0 Hostile Shots Fired 1910 | . 49 26 95 46 41 30 12 31 . 2 . 5 . . 13 3 18 3 13 3 41 16 . 53 88 77 41 40 180 119 250 615 Missed 801 | . 13 9 23 12 11 9 2 7 . 1 . 2 . . 7 2 4 1 6 2 14 7 . 28 22 20 19 18 70 45 137 310 Damage Taken 21113 | . 442 192 935 541 468 330 149 355 . 18 . 45 . . 60 14 264 109 88 31 800 312 . 335 1691 2562 311 399 1889 800 3157 4816 Core 1504 | . 22 103 144 82 81 49 . . . . . . . . . . . 22 . . 87 . . 46 52 86 31 . 141 75 62 421 Absorbed by Shields 9180 | . . . . . . . . . . . . . . . . . . . 47 30 6 63 . . . . 291 321 1496 828 1683 4415 Reduced by Siege Mode 78 | . . . . . . . . . . . . . . . . . . . . . . . . . . . . . . . . 78 Ignored by Resistances 566 | . . . . . . . . . . . . . . . . . . . . . . . . . . . . . 6 219 182 159 Regen/Repaired (Parts) 12005 | . . . 104 . . . 50 102 . 59 . 32 . . . 31 . 11 22 241 480 172 . 176 1046 1095 116 412 1207 1584 2482 2583 Core Remaining (%) 75 | 100 . 50 . 43 . . 76 . . . . . . 100 . . . . 97 . . . . 88 . 83 . . 88 . . 27 Volleys Fired 1235 | . 53 27 99 18 39 37 8 22 20 . 5 3 . 2 11 7 4 20 11 17 33 13 4 7 72 65 38 20 116 67 131 266 Largest 2 | . 2 2 2 2 2 2 2 2 1 . 1 1 . 2 2 1 2 1 1 1 2 1 1 1 1 1 1 1 1 1 2 2 Hottest 180 | . 85 85 133 124 124 124 105 169 84 . 84 84 . 180 180 85 180 95 95 95 167 46 123 123 123 76 76 76 76 76 76 95 Shots Fired 1612 | . 106 56 198 31 78 65 14 35 20 . 5 3 . 4 16 7 7 20 11 17 45 13 4 7 71 65 38 20 115 67 132 342 Gun 367 | . 106 56 106 17 39 29 14 . . . . . . . . . . . . . . . . . . . . . . . . . Cannon 1211 | . . . 92 10 39 36 . 35 17 . 5 2 . 4 16 5 6 16 11 17 39 . 4 7 71 65 38 20 115 67 132 342 Launcher 34 | . . . . 4 . . . . 3 . . 1 . . . 2 1 4 . . 6 13 . . . . . . . . . . Special . | . . . . . . . . . . . . . . . . . . . . . . . . . . . . . . . . . Kinetic 1122 | . 53 28 88 4 2 . 7 . . . 5 2 . 2 5 . 3 16 11 8 27 . 4 7 71 65 38 20 115 67 132 342 Thermal 412 | . 9 28 110 23 76 65 7 35 17 . . . . 2 11 5 3 . . 9 12 . . . . . . . . . . . Explosive 11 | . . . . 4 . . . . 3 . . 1 . . . 2 1 . . . . . . . . . . . . . . . Electromagnetic 67 | . 44 . . . . . . . . . . . . . . . . 4 . . 6 13 . . . . . . . . . . Robot Hit Streak 39 | . 11 10 30 10 12 11 4 6 8 . . 9 . 1 4 . 5 13 20 2 10 5 4 5 6 14 16 13 39 12 17 27 Robot Miss Streak 4 | . 4 3 4 2 3 2 2 2 1 . . . . 3 1 . 1 1 1 . 2 1 1 1 4 3 3 1 2 2 2 2 Penetration Max 1 | . . . . . . . . . . . . . . . . . . 1 1 . . . 1 . . . . 1 1 1 1 . Secondary Targets . | . . . . . . . . . . . . . . . . . . . . . . . . . . . . . . . . . Shots Hit Robots 1163 | . 65 34 130 22 59 43 9 19 16 . 1 5 . 1 5 1 5 17 8 2 35 7 3 6 43 52 27 27 90 47 100 284 Core Hits 550 | . 33 16 52 10 21 12 3 7 5 . . 4 . 2 4 5 7 17 5 2 17 26 3 3 17 19 11 12 34 27 49 127 Critical Kills 15 | . . . 1 . 2 . . 1 . . . . . . . . . . . . . . . . 3 1 1 . 2 2 . 2 Critical Parts Destroyed 29 | . . 1 . . . . . 1 . . . . . . . . . . . . . . . . 2 3 . . 10 3 2 7 Critical Strikes 72 | . . 1 1 . 7 2 . 3 1 . . 1 . 1 . . 2 1 3 . 1 . . . 5 4 2 . 12 5 2 18 Burn 9 | . . . . . 5 2 . 1 1 . . . . . . . . . . . . . . . . . . . . . . . Meltdown 3 | . . . 1 . 2 . . . . . . . . . . . . . . . . . . . . . . . . . . . Destroy 43 | . . 1 . . . . . 2 . . . . . . . . . . . . . . . . 5 4 1 . 12 5 2 11 Blast 16 | . . . . . . . . . . . . 1 . 1 . . 2 1 3 . 1 . . . . . . . . . . 7 Sever 1 | . . . . . . . . . . . . . . . . . . . . . . . . . . . 1 . . . . . Melee Attacks 171 | . . . . . . 4 . 6 . 1 2 9 . . 10 1 . 8 . 2 4 3 . . 38 27 5 27 15 8 1 . Impact . | . . . . . . . . . . . . . . . . . . . . . . . . . . . . . . . . . Slashing 113 | . . . . . . . . 4 . 1 2 9 . . 10 1 . 8 . 2 4 3 . . 38 27 4 . . . . . Piercing 58 | . . . . . . 4 . 2 . . . . . . . . . . . . . . . . . . 1 27 15 8 1 . Sneak Attacks 17 | . . . . . . 1 . 1 . . . . . . 1 . . . . 1 1 3 . . . . 1 5 2 . 1 . Combat Hostiles . | . . . . . . . . . . . . . . . . . . . . . . . . . . . . . . . . . Follow-up Attacks . | . . . . . . . . . . . . . . . . . . . . . . . . . . . . . . . . . Damage Inflicted 101951 | . 941 403 2426 686 1140 832 148 759 1079 . 63 652 . 80 286 304 521 1511 531 108 2286 1870 443 630 5699 7156 3283 2999 12862 6998 14215 31040 Guns 3348 | . 722 403 990 223 502 360 148 . . . . . . . . . . . . . . . . . . . . . . . . . Cannons 91358 | . . . 1436 205 638 430 . 668 559 . . 50 . 80 206 . 261 919 531 30 1564 . 443 630 5650 7156 3186 1914 12720 6929 14113 31040 Explosions 4492 | . 219 . . 258 . . . . 520 . . 230 . . . 233 260 592 . . 502 1642 . . . . . . . 36 . . Melee 2753 | . . . . . . 42 . 91 . . 63 372 . . 80 71 . . . 78 220 228 . . 49 . 97 1085 142 33 102 . Ramming . | . . . . . . . . . . . . . . . . . . . . . . . . . . . . . . . . . Kinetic 88280 | . 226 141 801 30 33 . 96 . . . . 50 . 50 140 . 187 919 531 . 1295 . 443 630 5650 7156 3186 1914 12720 6929 14113 31040 Thermal 7019 | . 334 262 1625 398 1107 790 52 668 559 . . . . 30 66 . 74 172 . 30 269 583 . . . . . . . . . . Explosive 1537 | . . . . 258 . . . . 520 . . 230 . . . 233 260 . . . . . . . . . . . . 36 . . Electromagnetic 2362 | . 381 . . . . . . . . . . . . . . . . 420 . . 502 1059 . . . . . . . . . . Impact . | . . . . . . . . . . . . . . . . . . . . . . . . . . . . . . . . . Slashing 1349 | . . . . . . . . 91 . . 63 372 . . 80 71 . . . 78 220 228 . . 49 . 97 . . . . . Piercing 1404 | . . . . . . 42 . . . . . . . . . . . . . . . . . . . . . 1085 142 33 102 . Highest Corruption 4 | . 3 3 . . . . . 4 4 4 4 4 4 4 . . 4 4 . . . . . . 4 1 . 2 3 . . . Average Corruption 2 | . 2 3 . . . . . 2 4 4 4 4 4 4 . . 3 4 . . . . . . 1 1 . 2 2 . . . Corruption Purged 10 | . . . . . . . . . . . . . . . . . . . . . . . . . 10 . . . . . . . Corruption Blocked 11 | . . . . . . . . . . . . . . . . . . 11 . . . . . . . . . . . . . . Effects 139 | . 15 22 . . . . . 7 5 4 9 11 2 6 . . 5 . . . . . . . 15 11 . 3 24 . . . Message Errors 39 | . 2 7 . . . . . 2 . 1 4 3 . 1 . . 1 . . . . . . . 5 5 . 1 7 . . . Matter Fused 36 | . 6 6 . . . . . . 2 1 2 4 2 1 . . 1 . . . . . . . 1 2 . 1 7 . . . Heat Flow Errors 19 | . 2 4 . . . . . 2 1 . 1 1 . 1 . . . . . . . . . . 3 2 . . 2 . . . Energy Discharges 13 | . 2 1 . . . . . 1 1 1 . 2 . 1 . . 1 . . . . . . . . 1 . 1 1 . . . Parts Rejected 1 | . . . . . . . . . . . . . . . . . . . . . . . . . 1 . . . . . . . Parts Fused 2 | . . . . . . . . 1 . . . . . . . . . . . . . . . . 1 . . . . . . . Data Loss (minor) 18 | . 1 2 . . . . . 1 1 1 2 1 . 2 . . 1 . . . . . . . 1 . . . 5 . . . Data Loss (major) 3 | . . . . . . . . . . . . . . . . . . . . . . . . . 2 1 . . . . . . Misfires 2 | . . 2 . . . . . . . . . . . . . . . . . . . . . . . . . . . . . . Alerts 4 | . 2 . . . . . . . . . . . . . . . 1 . . . . . . . . . . . 1 . . . Weapon Failures 2 | . . . . . . . . . . . . . . . . . . . . . . . . . 1 . . . 1 . . . Overload Shots . | . . . . . . . . . . . . . . . . . . . . . . . . . . . . . . . . . Overflow Damage 11659 | . . . 1 8 5 . . 83 . . 49 187 . . 15 17 26 31 . . 114 23 20 164 1671 696 425 401 2246 2184 1674 1619 Projectiles 11034 | . . . 1 8 5 . . 42 . . . . . . 15 . 26 . . . 24 . 20 164 1671 696 420 293 2234 2184 1612 1619 Explosions 167 | . . . . . . . . . . . . 42 . . . 17 . 31 . . 54 23 . . . . . . . . . . Melee 458 | . . . . . . . . 41 . . 49 145 . . . . . . . . 36 . . . . . 5 108 12 . 62 . Knockbacks 254 | . . . . . . . . . . . . . . . . . . 4 . . 7 . 1 2 11 . 10 4 34 17 35 129 Impact . | . . . . . . . . . . . . . . . . . . . . . . . . . . . . . . . . . Kinetic 240 | . . . . . . . . . . . . . . . . . . 4 . . 6 . 1 2 9 . 9 4 31 16 33 125 Secondary 14 | . . . . . . . . . . . . . . . . . . . . . 1 . . . 2 . 1 . 3 1 2 4 Self-Inflicted Damage 319 | . 71 . . 39 . . . . . . . . . . . . . . . . . 19 . . . . . 106 . 84 . . Shots 8 | . 3 . . 1 . . . . . . . . . . . . . . . . . 2 . . . . . 1 . 1 . . Rammed . | . . . . . . . . . . . . . . . . . . . . . . . . . . . . . . . . . Targets Rammed . | . . . . . . . . . . . . . . . . . . . . . . . . . . . . . . . . . Kicked . | . . . . . . . . . . . . . . . . . . . . . . . . . . . . . . . . . Crushed . | . . . . . . . . . . . . . . . . . . . . . . . . . . . . . . . . . Highest Temperature 277 | . 209 124 126 174 1 19 12 195 47 . 179 107 . 164 72 24 . 56 18 16 24 . 20 60 277 209 18 16 82 . . 24 Average Temperature 41 | . 48 32 24 70 1 4 6 77 47 . 107 59 . 58 21 13 . 23 13 16 9 . 15 23 83 45 18 13 22 . . 8 Received Heat Transfer 2006 | . 153 72 447 114 216 117 45 . . 9 . . . . . . . 21 13 . 117 18 . 33 207 . . 8 100 8 64 244 Siege Activations 13 | . . . . . . . . . . . . . . . . . . . . . . . . . . . . . . . . 13 Total Turns 218 | . . . . . . . . . . . . . . . . . . . . . . . . . . . . . . . . 218 Longest Duration 61 | . . . . . . . . . . . . . . . . . . . . . . . . . . . . . . . . 61 Robots Corrupted 9 | . . . . . . . . . . . . . . . . . . 2 . . 3 4 . . . . . . . . . . Combat Hostiles 7 | . . . . . . . . . . . . . . . . . . 2 . . 2 3 . . . . . . . . . . Parts Fried 15 | . 1 . . . . . . . . . . . . . . . . . . . 6 8 . . . . . . . . . . Impact Corruptions 2 | . . . . . . . . . . . . . . . . . . . . . . . . . 1 . . . . . 1 . Robots Melted 5 | . . . 1 . 4 . . . . . . . . . . . . . . . . . . . . . . . . . . . Combat Hostiles 4 | . . . 1 . 3 . . . . . . . . . . . . . . . . . . . . . . . . . . . Parts Melted 27 | . . . 6 4 10 1 . 5 . . . . . . . . . . . . . . . . . . . . 1 . . . Heat Transferred 12288 | . 559 629 3034 777 2516 1702 111 855 900 . . . . 37 74 . 74 200 . 37 333 450 . . . . . . . . . . Parts Sabotaged . | . . . . . . . . . . . . . . . . . . . . . . . . . . . . . . . . . Parts Stolen . | . . . . . . . . . . . . . . . . . . . . . . . . . . . . . . . . . Parts Stripped . | . . . . . . . . . . . . . . . . . . . . . . . . . . . . . . . . . Power Chain Reactions 10 | . 3 . . . . . . . . . . . . . . . . 2 . . 1 4 . . . . . . . . . . Missiles Intercepted . | . . . . . . . . . . . . . . . . . . . . . . . . . . . . . . . . . Alert | -11 -10 -10 -9 -9 -8 -8 -8 -6 -6 -6 -6 -6 -6 -5 -5 -5 -5 -5 -4 -4 -4 -4 -4 -4 -3 -3 -2 -2 -2 -1 -1 -1 ------- Run | Yrd Mat Min Mat Min Mat Sto Rec Fac Was Fac Low Low Dat Pro Fac Upp Upp War Pro Fac Ext Cet Arc Hub Res Qua Res Tes Sec Acc Com Ac0 Peak Influence 1500 | . 411 301 404 207 300 256 165 309 54 38 . . . . 415 . . . . 317 664 1396 722 546 537 320 293 499 1239 1500 1139 . Initial 960 | . . 107 . 152 64 39 42 300 22 37 . . . . 344 . . . . 170 74 200 498 182 265 256 3 103 234 743 960 . Average 313 | . 230 125 235 103 114 141 42 198 33 37 . . . . 160 . . . . 165 319 1036 660 272 357 125 144 244 787 1066 1003 . Maximum Alert Level 5 | . 2 1 2 1 1 1 . 1 . . . . . . 2 . . . . 1 2 4 3 2 2 1 1 2 4 4 5 . Low Security (%) 40 | 100 41 69 32 66 83 68 100 58 100 100 . . . . 66 . . . . 82 28 . . 49 . 81 78 40 . . . . Level 1 26 | . 56 30 64 33 16 31 . 41 . . . . . . 24 . . . . 17 33 4 . 38 73 18 21 52 6 . . . Level 2 6 | . 2 . 3 . . . . . . . . . . . 8 . . . . . 38 4 28 12 25 . . 7 29 . . . Level 3 8 | . . . . . . . . . . . . . . . . . . . . . . 29 71 . . . . . 53 57 10 . Level 4 9 | . . . . . . . . . . . . . . . . . . . . . . 61 . . . . . . 9 42 36 . Level 5 8 | . . . . . . . . . . . . . . . . . . . . . . . . . . . . . . . 53 . High Security . | . . . . . . . . . . . . . . . . . . . . . . . . . . . . . . . . . Max Security . | . . . . . . . . . . . . . . . . . . . . . . . . . . . . . . . . . Squads Dispatched 52 | . 3 . 4 . . . . 3 . . . . . . 3 . . . . 3 1 . . 3 10 1 1 4 9 5 2 . Investigation 6 | . 2 . 2 . . . . . . . . . . . . . . . . . . . . . 2 . . . . . . . Extermination 19 | . . . . . . . . 2 . . . . . . 1 . . . . 2 . . . 1 5 . . 2 3 3 . . Reinforcement 20 | . 1 . 2 . . . . 1 . . . . . . 2 . . . . 1 1 . . 1 3 1 1 2 4 . . . Assault 6 | . . . . . . . . . . . . . . . . . . . . . . . . . . . . . 2 2 2 . Garrison 1 | . . . . . . . . . . . . . . . . . . . . . . . . 1 . . . . . . . . Intercept . | . . . . . . . . . . . . . . . . . . . . . . . . . . . . . . . . . Searches Triggered 1 | . . . . . . . . . . . . . . . 1 . . . . . . . . . . . . . . . . . Construction Impeded 3 | . . . . . . . . . . . . . . . . . . . . . 1 . . 1 . 1 . . . . . . Haulers Reinforced 2 | . . . . . . . . . . . . . . . . . . . . . . . . . . . . 1 1 . . . Active Scanning Responses . | . . . . . . . . . . . . . . . . . . . . . . . . . . . . . . . . . Cargo Convoy Interrupts . | . . . . . . . . . . . . . . . . . . . . . . . . . . . . . . . . . Stealth | -11 -10 -10 -9 -9 -8 -8 -8 -6 -6 -6 -6 -6 -6 -5 -5 -5 -5 -5 -4 -4 -4 -4 -4 -4 -3 -3 -2 -2 -2 -1 -1 -1 --------- Run | Yrd Mat Min Mat Min Mat Sto Rec Fac Was Fac Low Low Dat Pro Fac Upp Upp War Pro Fac Ext Cet Arc Hub Res Qua Res Tes Sec Acc Com Ac0 Distress Signals 44 | . 3 . . . 2 . . . . . . . . . 2 . . . . 2 2 2 . . 2 . 9 . . . 20 . Communications Jammed 60 | . . . . . . . . . . . . . . . 1 . . . . . . . . . 6 . . . 9 44 . . Distress Signals 58 | . . . . . . . . . . . . . . . 1 . . . . . . . . . 6 . . . 7 44 . . Times Spotted 566 | . 28 9 40 7 16 10 1 5 5 1 . 3 . 4 14 4 6 41 10 7 21 24 8 11 37 12 25 18 49 42 30 78 Peak Tracking Total 10 | . 7 4 4 3 5 3 1 3 5 1 . 4 . 4 7 4 4 10 3 3 5 6 1 5 7 2 8 8 5 7 9 5 Tactical Retreats 29 | . 3 . 3 . . . . . . . . . . 2 2 . . 1 . 2 . . . 1 3 . 3 3 5 . 1 . Traps | -11 -10 -10 -9 -9 -8 -8 -8 -6 -6 -6 -6 -6 -6 -5 -5 -5 -5 -5 -4 -4 -4 -4 -4 -4 -3 -3 -2 -2 -2 -1 -1 -1 ------- Run | Yrd Mat Min Mat Min Mat Sto Rec Fac Was Fac Low Low Dat Pro Fac Upp Upp War Pro Fac Ext Cet Arc Hub Res Qua Res Tes Sec Acc Com Ac0 Traps Triggered 23 | . 3 . 2 . . 1 . 1 . . . . . . 1 . . 1 . . 2 . . 3 1 4 . . . 2 2 . Indirectly 2 | . . . . . . . . . . . . . . . . . . 1 . . 1 . . . . . . . . . . . Trap Hack Attempts . | . . . . . . . . . . . . . . . . . . . . . . . . . . . . . . . . . Triggered . | . . . . . . . . . . . . . . . . . . . . . . . . . . . . . . . . . Disarmed . | . . . . . . . . . . . . . . . . . . . . . . . . . . . . . . . . . Reprogrammed 2 | . . . . . . . . . . . . . . . 2 . . . . . . . . . . . . . . . . . Reused 1 | . . . . . . . . . . . . . . . 1 . . . . . . . . . . . . . . . . . Traps Extracted . | . . . . . . . . . . . . . . . . . . . . . . . . . . . . . . . . . Installed . | . . . . . . . . . . . . . . . . . . . . . . . . . . . . . . . . . Triggered 18 | . . . . . . . . . . . 3 . . . 1 . 2 11 . . . . . . . . . . . . 1 . Machines | -11 -10 -10 -9 -9 -8 -8 -8 -6 -6 -6 -6 -6 -6 -5 -5 -5 -5 -5 -4 -4 -4 -4 -4 -4 -3 -3 -2 -2 -2 -1 -1 -1 ---------- Run | Yrd Mat Min Mat Min Mat Sto Rec Fac Was Fac Low Low Dat Pro Fac Upp Upp War Pro Fac Ext Cet Arc Hub Res Qua Res Tes Sec Acc Com Ac0 Machines Disabled 69 | . 1 . 1 1 . 2 . 3 . . . . . . 1 . . . . . 5 . 2 2 3 5 2 8 14 3 4 12 Max in Single Turn 2 | . 1 . 1 1 . 1 . 1 . . . . . . 1 . . . . . 1 . . 1 1 1 1 2 1 1 2 1 Garrison Access 2 | . . . . . . . . . . . . . . . . . . . . . . . . . . . 1 1 . . . . Phase Generator 1 | . . . . . . . . . . . . . . . . . . . . . . . . . . . . . . . 1 . Machines Repaired . | . . . . . . . . . . . . . . . . . . . . . . . . . . . . . . . . . Machines Dismantled . | . . . . . . . . . . . . . . . . . . . . . . . . . . . . . . . . . Machines Sabotaged . | . . . . . . . . . . . . . . . . . . . . . . . . . . . . . . . . . Overloaded Fab Kills . | . . . . . . . . . . . . . . . . . . . . . . . . . . . . . . . . . Hacking | -11 -10 -10 -9 -9 -8 -8 -8 -6 -6 -6 -6 -6 -6 -5 -5 -5 -5 -5 -4 -4 -4 -4 -4 -4 -3 -3 -2 -2 -2 -1 -1 -1 --------- Run | Yrd Mat Min Mat Min Mat Sto Rec Fac Was Fac Low Low Dat Pro Fac Upp Upp War Pro Fac Ext Cet Arc Hub Res Qua Res Tes Sec Acc Com Ac0 Machines Accessed 105 | . 6 . 7 . 1 3 11 6 . . 1 1 2 . 10 . . . . 7 6 . . 3 9 10 4 5 6 4 2 1 Terminals 75 | . 5 . 5 . 1 2 6 3 . . . . . . 7 . . . . 5 6 . . 2 8 9 2 4 5 3 2 . Fabricators 5 | . . . . . . . . . . . . . . . 2 . . . . 1 . . . . . . 1 . . 1 . . Repair Stations 3 | . . . 1 . . . . . . . . . . . . . . . . . . . . . . 1 . . 1 . . . Recycling Units 12 | . 1 . 1 . . 1 5 2 . . . . . . 1 . . . . 1 . . . . . . . . . . . . Scanalyzers 1 | . . . . . . . . 1 . . . . . . . . . . . . . . . . . . . . . . . . Garrison Access 4 | . . . . . . . . . . . . . . . . . . . . . . . . 1 1 . 1 1 . . . . Total Hacks 244 | . 14 . 16 . 4 6 35 11 . . 4 1 10 . 22 . . . . 12 16 . . 9 23 15 9 12 11 8 5 1 Successful 104 | . 6 . 7 . 1 3 21 5 . . 4 1 10 . 11 . . . . 4 5 . . 2 7 1 5 4 3 2 1 1 Failed 140 | . 8 . 9 . 3 3 14 6 . . . . . . 11 . . . . 8 11 . . 7 16 14 4 8 8 6 4 . Catastrophic 40 | . 2 . 4 . . . 1 5 . . . . . . 1 . . . . 5 2 . . 2 4 5 3 1 2 2 1 . Database Lockouts . | . . . . . . . . . . . . . . . . . . . . . . . . . . . . . . . . . Manual 110 | . 9 . 5 . 1 3 18 1 . . . . . . 9 . . 1 . 8 10 1 . 4 12 4 6 5 4 7 2 . Terminals 178 | . 12 . 10 . 4 3 20 7 . . . . . . 19 . . . . 9 16 . . 6 21 14 6 9 10 7 5 . Fabricators 6 | . . . . . . . . . . . . . . . 2 . . . . 1 . . . . . . 2 . . 1 . . Repair Stations 7 | . . . 5 . . . . . . . . . . . . . . . . . . . . . . 1 . . 1 . . . Recycling Units 27 | . 2 . 1 . . 3 15 3 . . . . . . 1 . . . . 2 . . . . . . . . . . . . Scanalyzers 1 | . . . . . . . . 1 . . . . . . . . . . . . . . . . . . . . . . . . Garrison Access 9 | . . . . . . . . . . . . . . . . . . . . . . . . 3 2 . 1 3 . . . . Terminal Hacks 64 | . 2 . 2 . 1 2 8 3 . . 4 1 10 . 8 . . . . 3 4 . . . 5 1 4 1 2 1 1 1 Record 6 | . . . . . . . . . . . 4 . 1 . . . . . . . . . . . . . . . . . . 1 Part Schematic 6 | . . . . . . . . . . . . . 6 . . . . . . . . . . . . . . . . . . . Robot Analysis 1 | . . . . . . . 1 . . . . . . . . . . . . . . . . . . . . . . . . . Prototype ID Bank 8 | . . . . . . . 3 1 . . . . 3 . . . . . . . 1 . . . . . . . . . . . Open Door 5 | . . . . . . 1 . . . . . 1 . . . . . . . . . . . . . . . . 2 . 1 . Level Access Points 2 | . . . . . . . 1 . . . . . . . . . . . . . . . . . 1 . . . . . . . Branch Access Points 7 | . . . 1 . . 1 . 1 . . . . . . 1 . . . . . . . . . 1 . 1 . . 1 . . Terminal Index 1 | . . . . . . . . . . . . . . . . . . . . . . . . . 1 . . . . . . . Fabricator Index 1 | . . . . . . . . . . . . . . . 1 . . . . . . . . . . . . . . . . . Alert Level 6 | . . . . . . . 1 . . . . . . . . . . . . 1 1 . . . . 1 1 1 . . . . Unreport Threat 4 | . . . . . 1 . . . . . . . . . . . . . . . 1 . . . 1 . 1 . . . . . Locate Traps 7 | . 1 . 1 . . . . . . . . . . . 3 . . . . 1 . . . . 1 . . . . . . . Reprogram Traps 1 | . . . . . . . . . . . . . . . 1 . . . . . . . . . . . . . . . . . Registered Prototypes 1 | . . . . . . . . . . . . . . . 1 . . . . . . . . . . . . . . . . . Zone Layout 8 | . 1 . . . . . 2 1 . . . . . . 1 . . . . 1 1 . . . . . 1 . . . . . Fabricator Hacks . | . . . . . . . . . . . . . . . . . . . . . . . . . . . . . . . . . Repair Station Hacks 5 | . . . 5 . . . . . . . . . . . . . . . . . . . . . . . . . . . . . Scan Component 3 | . . . 3 . . . . . . . . . . . . . . . . . . . . . . . . . . . . . Repair 2 | . . . 2 . . . . . . . . . . . . . . . . . . . . . . . . . . . . . Recycling Unit Hacks 9 | . 1 . . . . 1 5 2 . . . . . . . . . . . . . . . . . . . . . . . . Retrieve Components 9 | . 1 . . . . 1 5 2 . . . . . . . . . . . . . . . . . . . . . . . . Scanalyzer . | . . . . . . . . . . . . . . . . . . . . . . . . . . . . . . . . . Garrison Access Hacks 1 | . . . . . . . . . . . . . . . . . . . . . . . . . . . . 1 . . . . Seal Access 1 | . . . . . . . . . . . . . . . . . . . . . . . . . . . . 1 . . . . Unauthorized Hacks 25 | . 3 . . . . . 8 . . . . . . . 3 . . . . 1 1 . . 2 2 . 1 2 1 1 . . Terminals 19 | . 3 . . . . . 3 . . . . . . . 2 . . . . 1 1 . . 2 2 . 1 2 1 1 . . Assimilate 1 | . . . . . . . . . . . . . . . . . . . . . . . . . . . . . 1 . . . Botnet 18 | . 3 . . . . . 3 . . . . . . . 2 . . . . 1 1 . . 2 2 . 1 2 . 1 . . Fabricators 1 | . . . . . . . . . . . . . . . 1 . . . . . . . . . . . . . . . . . Fabnet 1 | . . . . . . . . . . . . . . . 1 . . . . . . . . . . . . . . . . . Repair Stations . | . . . . . . . . . . . . . . . . . . . . . . . . . . . . . . . . . Recycling Units 5 | . . . . . . . 5 . . . . . . . . . . . . . . . . . . . . . . . . . Tunnel 5 | . . . . . . . 5 . . . . . . . . . . . . . . . . . . . . . . . . . Scanalyzers . | . . . . . . . . . . . . . . . . . . . . . . . . . . . . . . . . . Garrison Access . | . . . . . . . . . . . . . . . . . . . . . . . . . . . . . . . . . Data Cores Recovered 1 | . . . . . . . . . . . . . . . . . . . . . . . . . . . . 1 . . . . Used 1 | . . . . . . . . . . . . . . . . . . . . . . . . . . . . 1 . . . . Hacking Detections 93 | . 6 . 7 . 1 2 7 6 . . . . . . 10 . . . . 7 6 . . 3 9 10 4 5 5 3 2 . Full Trace Events 5 | . 1 . 1 . . . 1 . . . . . . . . . . . . . . . . . 2 . . . . . . . Feedback Events 1 | . . . . . . . . . . . . . . . . . . . . . . . . . 1 . . . . . . . Corruption 1 | . . . . . . . . . . . . . . . . . . . . . . . . . 1 . . . . . . . Feedback Blocked . | . . . . . . . . . . . . . . . . . . . . . . . . . . . . . . . . . Robot Schematics Acquired . | . . . . . . . . . . . . . . . . . . . . . . . . . . . . . . . . . Robots Built . | . . . . . . . . . . . . . . . . . . . . . . . . . . . . . . . . . Authchips . | . . . . . . . . . . . . . . . . . . . . . . . . . . . . . . . . . Time . | . . . . . . . . . . . . . . . . . . . . . . . . . . . . . . . . . Total Robot Build Rating . | . . . . . . . . . . . . . . . . . . . . . . . . . . . . . . . . . Part Schematics Acquired 6 | . . . . . . . . . . . . . 6 . . . . . . . . . . . . . . . . . . . Parts Built . | . . . . . . . . . . . . . . . . . . . . . . . . . . . . . . . . . Authchips . | . . . . . . . . . . . . . . . . . . . . . . . . . . . . . . . . . Time . | . . . . . . . . . . . . . . . . . . . . . . . . . . . . . . . . . Total Part Build Rating . | . . . . . . . . . . . . . . . . . . . . . . . . . . . . . . . . . Parts Repaired 2 | . . . 2 . . . . . . . . . . . . . . . . . . . . . . . . . . . . . Time 58 | . . . 58 . . . . . . . . . . . . . . . . . . . . . . . . . . . . . Parts Recycled . | . . . . . . . . . . . . . . . . . . . . . . . . . . . . . . . . . Recycled Matter . | . . . . . . . . . . . . . . . . . . . . . . . . . . . . . . . . . Retrieved Matter . | . . . . . . . . . . . . . . . . . . . . . . . . . . . . . . . . . Retrieved Components 16 | . . . . . . 3 9 4 . . . . . . . . . . . . . . . . . . . . . . . . Parts Scanalyzed . | . . . . . . . . . . . . . . . . . . . . . . . . . . . . . . . . . Part Schematics Acquired . | . . . . . . . . . . . . . . . . . . . . . . . . . . . . . . . . . Parts Damaged . | . . . . . . . . . . . . . . . . . . . . . . . . . . . . . . . . . Bothacking | -11 -10 -10 -9 -9 -8 -8 -8 -6 -6 -6 -6 -6 -6 -5 -5 -5 -5 -5 -4 -4 -4 -4 -4 -4 -3 -3 -2 -2 -2 -1 -1 -1 ------------ Run | Yrd Mat Min Mat Min Mat Sto Rec Fac Was Fac Low Low Dat Pro Fac Upp Upp War Pro Fac Ext Cet Arc Hub Res Qua Res Tes Sec Acc Com Ac0 Used RIF Installer . | . . . . . . . . . . . . . . . . . . . . . . . . . . . . . . . . . Robots Hacked 5 | . . . . . . . . . . . . . . . . . . . . 1 1 2 . 1 . . . . . . . . Non-combat . | . . . . . . . . . . . . . . . . . . . . . . . . . . . . . . . . . Combat 5 | . . . . . . . . . . . . . . . . . . . . 1 1 2 . 1 . . . . . . . . Robot Hacks Applied . | . . . . . . . . . . . . . . . . . . . . . . . . . . . . . . . . . Relay Couplers Released . | . . . . . . . . . . . . . . . . . . . . . . . . . . . . . . . . . Fabnet Peak Effective % 3 | . . . . . . . . . . . . . . . . . . . 3 3 3 3 3 3 1 1 . . . . . . Autooverrided 5 | . . . . . . . . . . . . . . . . . . . . 1 1 2 . 1 . . . . . . . . Robots Rewired 18 | . . . . . . . . . . . . . . . . . . 5 . . 12 . . . . . . 1 . . . . Allies Hacked . | . . . . . . . . . . . . . . . . . . . . . . . . . . . . . . . . . Hacks Repelled . | . . . . . . . . . . . . . . . . . . . . . . . . . . . . . . . . . Allies | -11 -10 -10 -9 -9 -8 -8 -8 -6 -6 -6 -6 -6 -6 -5 -5 -5 -5 -5 -4 -4 -4 -4 -4 -4 -3 -3 -2 -2 -2 -1 -1 -1 -------- Run | Yrd Mat Min Mat Min Mat Sto Rec Fac Was Fac Low Low Dat Pro Fac Upp Upp War Pro Fac Ext Cet Arc Hub Res Qua Res Tes Sec Acc Com Ac0 Total Allies 39 | . . 2 . . . . . . . . 2 . . . . . . 5 . 1 19 7 . 1 . . . 1 1 . . . Largest Group 14 | . . 2 . . . . . . . . 2 2 . . . . . 5 5 5 9 14 9 9 . . . 1 1 . . . Highest-Rated Group 988 | . . 46 . . . . . . . . 50 50 . . . . . 280 280 275 508 988 652 603 . . . 146 26 . . . Highest-Rated Ally 159 | . . 31 . . . . . . . . 25 25 . . . . . 68 68 68 159 159 96 96 . . . 146 26 . . . Total Orders 10 | . . . . . . . . . . . . . . . . . . 4 . 2 2 . 2 . . . . . . . . . STAY 6 | . . . . . . . . . . . . . . . . . . 3 . 1 1 . 1 . . . . . . . . . FOLLOW 4 | . . . . . . . . . . . . . . . . . . 1 . 1 1 . 1 . . . . . . . . . Ally Attacks 336 | . . 9 . . . . . . . . . . . . . . . 5 22 24 93 96 20 52 . . . 15 . . . . Total Damage 10904 | . . 125 . . . . . . . . . . . . . . . 243 952 1052 2485 2637 706 1590 . . . 1114 . . . . Kills 74 | . . 2 . . . . . . . . . . . . . . . . 5 8 15 24 4 10 . . . 6 . . . . Allies Corrupted 1 | . . . . . . . . . . . . . . . . . . . . . . . . . . . . 1 . . . . Allies Melted 2 | . . . . . . . . . . . . . . . . . . . . . 1 . . . . . 1 . . . . . Intel | -11 -10 -10 -9 -9 -8 -8 -8 -6 -6 -6 -6 -6 -6 -5 -5 -5 -5 -5 -4 -4 -4 -4 -4 -4 -3 -3 -2 -2 -2 -1 -1 -1 ------- Run | Yrd Mat Min Mat Min Mat Sto Rec Fac Was Fac Low Low Dat Pro Fac Upp Upp War Pro Fac Ext Cet Arc Hub Res Qua Res Tes Sec Acc Com Ac0 Robot Analysis Total 1 | . . . . . . . 1 . . . . . . . . . . . . . . . . . . . . . . . . . Derelict Logs Recovered 9 | . . 1 . 2 . . . . . . . 2 . 1 . . 2 . 1 . . . . . . . . . . . . . Drone Launches . | . . . . . . . . . . . . . . . . . . . . . . . . . . . . . . . . . Drone Recoveries . | . . . . . . . . . . . . . . . . . . . . . . . . . . . . . . . . . Exploration | -11 -10 -10 -9 -9 -8 -8 -8 -6 -6 -6 -6 -6 -6 -5 -5 -5 -5 -5 -4 -4 -4 -4 -4 -4 -3 -3 -2 -2 -2 -1 -1 -1 ------------- Run | Yrd Mat Min Mat Min Mat Sto Rec Fac Was Fac Low Low Dat Pro Fac Upp Upp War Pro Fac Ext Cet Arc Hub Res Qua Res Tes Sec Acc Com Ac0 Turns Passed 36717 | 48 1117 1044 2781 1067 611 637 1638 1207 174 133 526 540 59 183 1203 859 237 1172 329 769 1128 811 456 373 2126 2726 1385 1285 1574 1171 4708 2640 Spaces Moved 24332 | 39 752 527 1047 468 200 212 488 794 143 152 721 670 90 227 1431 506 326 942 342 848 935 342 97 163 991 1314 1217 1143 1148 772 2671 2614 Core 3 | 3 . . . . . . . . . . . . . . . . . . . . . . . . . . . . . . . . Treads 4271 | 2 13 . . . . . . 59 143 152 10 . . . . . . . . . . . 25 53 . 69 . . . 15 1116 2614 Legs 2543 | . . . . . . . 314 107 . . . . . . . . . . . 846 10 342 4 110 288 335 . . . . 187 . Wheels 4977 | 34 739 527 1047 468 200 212 174 256 . . . . . . . . . . . . . . . . 475 604 . . . . 241 . Hover 8299 | . . . . . . . . 372 . . 711 670 90 227 1431 506 326 942 342 2 335 . . . 228 30 . . 530 757 800 . Flight 4239 | . . . . . . . . . . . . . . . . . . . . . 590 . 68 . . 276 1217 1143 618 . 327 . Fastest Speed 38 | 50 95 175 175 175 215 210 120 83 83 83 63 63 63 63 63 63 63 63 63 43 38 41 169 183 103 78 78 78 78 78 56 56 Average Speed 99 | 89 115 175 209 213 215 217 261 125 83 83 63 63 63 63 63 63 63 63 63 49 40 69 187 183 137 138 78 78 78 105 101 57 Slowest Speed 297 | 160 175 175 215 215 215 230 297 217 83 83 83 63 63 63 63 63 63 63 63 50 118 222 271 183 219 206 78 78 78 153 269 177 Overloaded Moves . | . . . . . . . . . . . . . . . . . . . . . . . . . . . . . . . . . Propulsion Burnouts . | . . . . . . . . . . . . . . . . . . . . . . . . . . . . . . . . . Robots Hopped 22 | . . . . . . . . . . . . . . . . . . . . . 7 . . . . . 6 7 2 . . . Cave-ins Triggered . | . . . . . . . . . . . . . . . . . . . . . . . . . . . . . . . . . Teleports 5 | . . . . . . . . . . . . . . . . . . . . . . . . . . 1 . . . . 1 3 Exploration Rate (%) 60 | 3 94 98 84 95 22 33 97 26 83 5 93 72 68 46 45 67 63 81 47 16 89 68 83 15 34 95 37 94 54 27 75 94 Regions Visited 32 Branch Regions 21 Pre-discovered Areas 9 | . . 2 . . . . 5 . . . . 1 . 1 . . . . . . . . . . . . . . . . . . Known Exits Taken 25 | . . . 1 . 1 1 1 . . 1 1 1 1 1 1 1 1 1 1 1 1 1 1 1 1 1 1 1 1 1 . . Unknown Exits Taken 5 | 1 1 1 . 1 . . . . . . . . . . . . . . . . . . . . . . . . . . 1 . Scrap Searched 15 | . . 1 . 1 . . . . . . 3 4 . . . 1 3 . 2 . . . . . . . . . . . . . Spaces Dug 147 | . . . . . . 2 . 8 . 1 3 5 . . 13 1 . 4 6 5 . 14 . . 24 6 5 12 22 9 5 2 Terrain Destroyed 715 | . 13 . . 33 . 2 . 16 23 1 7 13 . 3 20 32 15 25 13 11 8 54 1 2 54 13 9 62 66 59 115 45 Melee 78 | . . . . . . 2 . 5 . 1 1 5 . . 9 . . 4 . 1 . . . . 19 6 3 8 9 5 . . Projectile 349 | . . . . . . . . 11 1 . 6 2 . 3 11 5 7 5 13 10 8 . 1 2 35 7 6 16 57 36 62 45 AOE 288 | . 13 . . 33 . . . . 22 . . 6 . . . 27 8 16 . . . 54 . . . . . 38 . 18 53 . Terrain Rammed . | . . . . . . . . . . . . . . . . . . . . . . . . . . . . . . . . . Walls Destroyed . | . . . . . . . . . . . . . . . . . . . . . . . . . . . . . . . . . Machines Disabled . | . . . . . . . . . . . . . . . . . . . . . . . . . . . . . . . . . Actions | -11 -10 -10 -9 -9 -8 -8 -8 -6 -6 -6 -6 -6 -6 -5 -5 -5 -5 -5 -4 -4 -4 -4 -4 -4 -3 -3 -2 -2 -2 -1 -1 -1 --------- Run | Yrd Mat Min Mat Min Mat Sto Rec Fac Was Fac Low Low Dat Pro Fac Upp Upp War Pro Fac Ext Cet Arc Hub Res Qua Res Tes Sec Acc Com Ac0 Total 35248 | 48 910 601 1476 507 315 326 845 961 175 158 784 771 91 262 1710 1034 350 1491 444 1175 1621 910 367 234 1617 2118 1601 1473 1676 1042 4564 3591 Wait 8004 | . 74 31 210 3 31 47 304 86 8 2 53 73 . 34 201 508 3 474 87 281 513 514 267 51 460 604 256 186 280 153 1610 600 Move 24264 | 38 751 526 1046 467 199 211 487 794 142 151 720 669 89 226 1430 505 325 941 341 847 924 341 96 162 990 1313 1206 1130 1143 771 2670 2613 Hop 14 | . . . . . . . . . . . . . . . . . . . . . 3 . . . . . 4 5 2 . . . Pick Up 301 | 3 11 14 31 4 11 7 5 11 . 2 1 5 . . 16 1 4 7 . 5 2 7 . 3 10 23 8 20 14 4 39 33 Fast Attach 221 | 6 7 . 10 2 2 2 2 8 . . . 2 1 . 2 2 1 5 2 6 5 8 . 6 4 21 32 18 34 10 17 6 Attach 90 | . 1 . 3 2 4 2 5 3 . . . 1 . . 4 1 3 1 1 4 1 . . . 5 7 2 4 7 4 12 13 Detach 28 | . 1 . . . . . 2 2 . . . . . . 1 . . . . 3 2 1 . . . 1 2 1 2 2 4 4 Swap 276 | 1 3 1 21 6 11 6 8 13 5 . 1 4 . . 17 6 5 3 . 1 13 6 . . 28 19 9 13 27 11 19 19 Drop 490 | . 9 2 56 5 18 10 24 16 . 2 2 5 1 . 18 3 5 13 2 9 7 17 . 5 10 38 39 38 36 12 51 37 Fire 1235 | . 53 27 99 18 39 37 8 22 20 . 5 3 . 2 11 7 4 20 11 17 33 13 4 7 72 65 38 20 116 67 131 266 Melee 171 | . . . . . . 4 . 6 . 1 2 9 . . 10 1 . 8 . 2 4 3 . . 38 27 5 27 15 8 1 . Ram . | . . . . . . . . . . . . . . . . . . . . . . . . . . . . . . . . . Kick . | . . . . . . . . . . . . . . . . . . . . . . . . . . . . . . . . . Crush . | . . . . . . . . . . . . . . . . . . . . . . . . . . . . . . . . . Escape Stasis 28 | . . . . . . . . . . . . . . . . . . . . . 18 . . . . . . . . . 10 . Rewire 126 | . . . . . . . . . . . . . . . . . . 19 . . 96 . . . . . . 11 . . . . Trap . | . . . . . . . . . . . . . . . . . . . . . . . . . . . . . . . . . Miscellaneous . | . . . . . . . . . . . . . . . . . . . . . . . . . . . . . . . . . Route ------- -11/Scrapyard -10/Materials (discovered 4 exits: *Mat x3 / [*Min]) -10/Mines (discovered 3 exits: *Mat x2 / [*Exi]) -9/Materials (discovered 3 exits: *Mat x2 / *Min) -9/Mines (discovered 2 exits: *Mat x2) -8/Materials -8/Storage -8/Recycling -6/Factory (discovered 3 exits: *Fac / *Low x2) -6/Waste -6/Factory -6/Lower Caves -6/Lower Caves -6/Data Miner -5/Proximity Caves -5/Factory (discovered 6 exits: *Fac x4 / *Upp x2) -5/Upper Caves (discovered 2 exits: *Upp / *War) -5/Upper Caves (discovered 2 exits: *Fac / *War) -5/Warlord -4/Proximity Caves -4/Factory (discovered 2 exits: Res / *Ext) -4/Extension (discovered 2 exits: *Res / *Cet) -4/Cetus (discovered 2 exits: *Res / *Arc) -4/Archives (discovered 3 exits: *Res / *Hub x2) -4/Hub_04(d) -3/Research (discovered 6 exits: Res x3 / Arm / *Qua x2) -3/Quarantine -2/Research (discovered 4 exits: *Acc x2 / *Tes x2) -2/Testing (discovered 2 exits: *Acc / *Sec) -2/Section 7 -1/Access -1/Command (discovered 3 exits: [*Sur x2] / *Ac0) -1/Access_0 To Fleet Rendezvous History --------- Turn | Location | Event 11 | -11/Scrapyard | Discovered new exit (range 15) 49 | -11/Scrapyard | Entered Materials 276 | -10/Materials | Discovered new exit (range 9) 310 | -10/Materials | Build established: Mutant 374 | -10/Materials | Discovered new exit (range 8) 432 | -10/Materials | Discovered new exit (range 11) 605 | -10/Materials | Discovered new exit (range 8) 984 | -10/Materials | Build established: Scavenger-Mutant 1166 | -10/Materials | Entered Mines 1237 | -10/Mines | Discovered new exit (range 6) 1412 | -10/Mines | Deemed a non-threat by the Exiles lab entrance 1412 | -10/Mines | Discovered new exit (range 5) 1516 | -10/Mines | Discovered new exit (range 13) 1776 | -10/Mines | Learned location of Storage (-8) 2210 | -10/Mines | Entered Materials 2210 | -9/Materials | Evolved 2 slots: Propulsion x1, Utility x1 2527 | -9/Materials | Discovered new exit (range 16) 3240 | -9/Materials | Repaired Imp. Ion Engine 3267 | -9/Materials | Repaired Lgt. Treads 3701 | -9/Materials | Discovered new exit (range 13) 4420 | -9/Materials | Discovered new exit (range 9) 4679 | -9/Materials | Identified exit to Mines 4991 | -9/Materials | Entered Mines 5020 | -9/Mines | Core integrity fell below 50% 5052 | -9/Mines | Learned location of 1 exit from Proximity Caves 5143 | -9/Mines | Build established: Mutant 5241 | -9/Mines | Assembled infested the area 5246 | -9/Mines | Assisted by a Guerilla fighting off Assembled 5548 | -9/Mines | Found a hidden stash of uninstalled traps 5598 | -9/Mines | Discovered new exit (range 7) 5823 | -9/Mines | Received a Rocket Launcher from a helpful Derelict 6004 | -9/Mines | Discovered new exit (range 5) 6058 | -9/Mines | Entered Materials 6058 | -8/Materials | Evolved 2 slots: Utility x2 6059 | -8/Materials | Identified exit to Storage 6357 | -8/Materials | Build established: Scavenger-Mutant 6669 | -8/Materials | Entered Storage 6885 | -8/Storage | Identified exit to Recycling 7302 | -8/Storage | Used back door to open Recycling access 7306 | -8/Storage | Entered Recycling 7341 | -8/Recycling | Found Scrap Engine 7468 | -8/Recycling | Build established: Mutant 7739 | -8/Recycling | Identified exit to Factory 8364 | -8/Recycling | Build established: Construct 8944 | -8/Recycling | Entered Factory 8944 | -6/Factory | Evolved 4 slots: Propulsion x1, Utility x2, Weapon x1 9695 | -6/Factory | Identified exit to Lower Caves 9798 | -6/Factory | Discovered new exit (range 8) 9806 | -6/Factory | Identified exit to Factory 10151 | -6/Factory | Sucked down chute 10151 | -6/Factory | Entered Waste 10159 | -6/Waste | Spotted C-40 Crusher 10161 | -6/Waste | Spotted C-40 Crusher 10208 | -6/Waste | Spotted C-40 Crusher 10208 | -6/Waste | Spotted C-40 Crusher 10262 | -6/Waste | Spotted C-40 Crusher 10297 | -6/Waste | Discovered new exit (range 12) 10308 | -6/Waste | Identified exit to Factory 10317 | -6/Waste | Destroyed C-40 Crusher 10325 | -6/Waste | Entered Factory 10453 | -6/Factory | Discovered exit to Lower Caves (range 8) 10458 | -6/Factory | Entered Lower Caves 10555 | -6/Lower Caves | A Commander dispatched an escort 10558 | -6/Lower Caves | Learned Extension security intel 10558 | -6/Lower Caves | Learned Factory terminal intel 10558 | -6/Lower Caves | Learned Armory garrison access intel 10667 | -6/Lower Caves | Encountered a Warlord checkpoint 10913 | -6/Lower Caves | Discovered new exit (range 9) 10969 | -6/Lower Caves | Identified exit to Lower Caves 10984 | -6/Lower Caves | Entered another Lower Caves area 10984 | -6/Lower Caves | Accompanied by 2 allies 10985 | -6/Lower Caves | Commander's escort returned to base 10985 | -6/Lower Caves | Commander's escort returned to base 11002 | -6/Lower Caves | Encountered a Warlord checkpoint 11063 | -6/Lower Caves | Learned location of 2 exits from Factory 11226 | -6/Lower Caves | Found Alien Artifact 11226 | -6/Lower Caves | Identified Core Expander 11226 | -6/Lower Caves | Installed Core Expander, added new Weapon slot 11520 | -6/Lower Caves | Discovered new exit (range 7) 11523 | -6/Lower Caves | Identified exit to Data Miner 11524 | -6/Lower Caves | Entered Data Miner 11525 | -6/Data Miner | Discovered new exit (range 6) 11537 | -6/Data Miner | Met Data Miner 11548 | -6/Data Miner | Acquired the access code to Warlord's prototype stash 11558 | -6/Data Miner | Received God Mode back door access code from Data Miner 11582 | -6/Data Miner | Identified exit to Proximity Caves 11583 | -6/Data Miner | Entered Proximity Caves 11585 | -5/Proximity Caves | Spotter reported a threat 11586 | -5/Proximity Caves | Spotter reported a threat 11679 | -5/Proximity Caves | Learned location of Armory (-3) 11766 | -5/Proximity Caves | Entered Factory 11766 | -5/Factory | Evolved 2 slots: Utility x2 11767 | -5/Factory | Identified exit to Factory 11767 | -5/Factory | Identified exit to Upper Caves 11768 | -5/Factory | Loaded intel: 25 terminal locations 12052 | -5/Factory | Build established: Scout 12066 | -5/Factory | Search patrols dispatched 12386 | -5/Factory | Discovered exit to Factory (range 4) 12737 | -5/Factory | Discovered exit to Factory (range 11) 12737 | -5/Factory | Discovered exit to Factory (range 13) 12968 | -5/Factory | Spotted B-75 Beast 12969 | -5/Factory | Entered Upper Caves 13767 | -5/Upper Caves | Discovered new exit (range 14) 13784 | -5/Upper Caves | A Derelict revealed a hidden shortcut to "reach the base" 13797 | -5/Upper Caves | Identified exit to Warlord 13827 | -5/Upper Caves | Identified exit to Upper Caves 13828 | -5/Upper Caves | Entered another Upper Caves area 13852 | -5/Upper Caves | Learned location of 1 exit from Factory 13890 | -5/Upper Caves | Discovered exit to Factory (range 5) 14007 | -5/Upper Caves | Encountered a Warlord checkpoint 14065 | -5/Upper Caves | Entered Warlord 14087 | -5/Warlord | System corruption cleaned by Quarantine Array 14361 | -5/Warlord | Met Warlord 14372 | -5/Warlord | Opened Warlord's prototype stash 14380 | -5/Warlord | Found Prototype Hackware 14383 | -5/Warlord | Found Prototype Processor 14384 | -5/Warlord | Identified System Mapper 14386 | -5/Warlord | Warlord's base attacked by MAIN.C 14423 | -5/Warlord | Identified Exp. Armor Integrity Analyzer 14430 | -5/Warlord | Found Prototype Reactor 14527 | -5/Warlord | Build established: Commander-Scout 14736 | -5/Warlord | Warlord forces counterattacked 14778 | -5/Warlord | Spotted Striker 14810 | -5/Warlord | Spotted Striker 14828 | -5/Warlord | Spotted B-86 Titan 14834 | -5/Warlord | Spotted Executioner 14849 | -5/Warlord | Spotted B-75 Beast 14878 | -5/Warlord | Lost 14 allies 14910 | -5/Warlord | Spotted Striker 14910 | -5/Warlord | P-70 Sage assimilated allied 6I-QNS(g) 14999 | -5/Warlord | Lost 8 allies 15030 | -5/Warlord | Spotted Executioner 15032 | -5/Warlord | Destroyed Executioner 15039 | -5/Warlord | Spotted Striker 15061 | -5/Warlord | Warlord base infiltrated, sounded retreat 15063 | -5/Warlord | Spotted Striker 15217 | -5/Warlord | Discovered new exit (range 12) 15223 | -5/Warlord | Identified exit to Proximity Caves 15237 | -5/Warlord | Entered Proximity Caves 15237 | -4/Proximity Caves | Accompanied by 5 allies 15487 | -4/Proximity Caves | Attracted the attention of an 0b10 checkpoint 15566 | -4/Proximity Caves | Entered Factory 15566 | -4/Factory | Accompanied by 5 allies 15566 | -4/Factory | Evolved 2 slots: Power x1, Propulsion x1 15567 | -4/Factory | Identified exit to Research 15791 | -4/Factory | Spotted B-86 Titan 15832 | -4/Factory | Allies destroyed B-86 Titan 16000 | -4/Factory | Lost 4 allies 16025 | -4/Factory | Discovered new exit (range 7) 16030 | -4/Factory | Identified exit to Extension 16109 | -4/Factory | Build established: Assassin 16335 | -4/Factory | Entered Extension 16585 | -4/Extension | Rescued a captive Derelict 16721 | -4/Extension | Rescued a captive Derelict 16727 | -4/Extension | P-70 Sage assimilated allied TU-D03(g) 16904 | -4/Extension | Build established: Commander-Construct 17007 | -4/Extension | Spotted B-86 Titan 17027 | -4/Extension | Spotted B-86 Titan 17072 | -4/Extension | Destroyed B-86 Titan 17091 | -4/Extension | Lost 6 allies 17133 | -4/Extension | Rescued a captive Derelict 17153 | -4/Extension | Rescued a captive Derelict 17157 | -4/Extension | Rescued a captive Derelict 17255 | -4/Extension | Rescued A7 17350 | -4/Extension | Discovered exit to Research (range 10) 17350 | -4/Extension | Discovered new exit (range 6) 17362 | -4/Extension | Identified exit to Cetus 17463 | -4/Extension | Entered Cetus 17463 | -4/Cetus | Accompanied by 9 allies (A7) 17468 | -4/Cetus | Acquired a Cetus Manufacturing Module code from A7 17486 | -4/Cetus | Spotted Cetus Guard 17486 | -4/Cetus | Spotted Cetus Guard 17488 | -4/Cetus | Spotted Cetus Guard 17492 | -4/Cetus | Allies destroyed Cetus Guard 17495 | -4/Cetus | Spotted Cetus Guard 17495 | -4/Cetus | Destroyed Cetus Guard 17499 | -4/Cetus | Destroyed Cetus Guard 17500 | -4/Cetus | Allies destroyed Cetus Guard 17552 | -4/Cetus | Started Cetus Manufacturing Module 17577 | -4/Cetus | Manufactured an Enhanced Grunt 17602 | -4/Cetus | Manufactured an Enhanced Grunt 17627 | -4/Cetus | Manufactured an Enhanced Grunt 17652 | -4/Cetus | Manufactured an Enhanced Grunt 17677 | -4/Cetus | Manufactured an Enhanced Grunt 17698 | -4/Cetus | Discovered new exit (range 21) 17755 | -4/Cetus | Spotted Cetus Guard 17755 | -4/Cetus | Spotted Cetus Guard 17756 | -4/Cetus | Spotted Cetus Guard 17764 | -4/Cetus | Spotted Cetus Guard 17767 | -4/Cetus | Discovered exit to Research (range 21) 17773 | -4/Cetus | Allies destroyed Cetus Guard 17775 | -4/Cetus | Destroyed Cetus Guard 17776 | -4/Cetus | Destroyed Cetus Guard 17776 | -4/Cetus | Destroyed Cetus Guard 17785 | -4/Cetus | Met Revision 17 17802 | -4/Cetus | Lost 3 allies 17844 | -4/Cetus | Murdered A7 17844 | -4/Cetus | Destroyed A7 17847 | -4/Cetus | Extracted ID and sensor layout for unrecognized location from A7's data core 17854 | -4/Cetus | Found Prototype Protection 17854 | -4/Cetus | Identified Med. Regenerative Plating 18207 | -4/Cetus | Identified exit to Archives 18274 | -4/Cetus | Entered Archives 18274 | -4/Archives | Accompanied by 9 allies 18360 | -4/Archives | Discovered new exit (range 22) 18377 | -4/Archives | Discovered new exit (range 22) 18400 | -4/Archives | Discovered exit to Research (range 22) 18727 | -4/Archives | Identified exit to Hub_04(d) 18730 | -4/Archives | Entered Hub_04(d) 18730 | -4/Hub_04(d) | Accompanied by 8 allies 18731 | -4/Hub_04(d) | Discovered exit to Research (range 21) 18962 | -4/Hub_04(d) | Found Prototype Device 18962 | -4/Hub_04(d) | Identified Exp. Thermal Shield 19006 | -4/Hub_04(d) | Lost 3 allies 19066 | -4/Hub_04(d) | Garrison activated, responded to threat 19103 | -4/Hub_04(d) | Entered Research 19103 | -3/Research | Evolved 2 slots: Utility x2 19117 | -3/Research | Lost 4 allies 19627 | -3/Research | Build established: Infiltrator-Construct 19856 | -3/Research | Found Prototype Device 19889 | -3/Research | Identified Adv. Kinecellerator 20089 | -3/Research | Build established: Construct 20178 | -3/Research | Found Adv. Powered Armor 20311 | -3/Research | Found Prototype Device 20317 | -3/Research | Identified Exp. EM Disruption Field 20369 | -3/Research | Identified exit to Research 21066 | -3/Research | Identified exit to Armory 21066 | -3/Research | Identified exit to Quarantine 21229 | -3/Research | Entered Quarantine 21239 | -3/Quarantine | Found Alien Artifact 21385 | -3/Quarantine | Cryocooling Duct disabled 21399 | -3/Quarantine | Cryocooling Duct disabled 21400 | -3/Quarantine | Ambient heat levels rising (+20) 21400 | -3/Quarantine | Non-combat units ordered to evacuate 21414 | -3/Quarantine | Ambient heat levels rising (+20) 21414 | -3/Quarantine | Combat units ordered to evacuate 21514 | -3/Quarantine | Quarantine Guard activated 21547 | -3/Quarantine | Spotted Quarantine Guard 21547 | -3/Quarantine | Spotted Quarantine Guard 21625 | -3/Quarantine | Spotted Quarantine Guard 21649 | -3/Quarantine | Destroyed Quarantine Guard 21713 | -3/Quarantine | Found Alien Artifact 21713 | -3/Quarantine | Identified Hpw. Transdimensional Reconstructor 21713 | -3/Quarantine | Warped through subspace 21761 | -3/Quarantine | Spotted Quarantine Guard 21763 | -3/Quarantine | Spotted Quarantine Guard 21824 | -3/Quarantine | Destroyed Quarantine Guard 21826 | -3/Quarantine | Spotted Alpha 7 21872 | -3/Quarantine | Spotted Quarantine Guard 21914 | -3/Quarantine | Destroyed Quarantine Guard 22019 | -3/Quarantine | Destroyed Quarantine Guard 22160 | -3/Quarantine | Destroyed Quarantine Guard 22195 | -3/Quarantine | Destroyed Quarantine Guard 22299 | -3/Quarantine | Spotted Quarantine Guard 22593 | -3/Quarantine | Spotted Quarantine Guard 22600 | -3/Quarantine | Spotted Quarantine Guard 22646 | -3/Quarantine | Destroyed Quarantine Guard 22664 | -3/Quarantine | Destroyed Quarantine Guard 22994 | -3/Quarantine | Found Alien Artifact 23051 | -3/Quarantine | Identified Core Reset Matrix 23051 | -3/Quarantine | Identified Subatomic Replicator 23051 | -3/Quarantine | Used Core Reset Matrix 23055 | -3/Quarantine | Detected hypermatrix surge 23055 | -3/Quarantine | Sensed 14 artifacts in vicinity 23121 | -3/Quarantine | Destroyed Quarantine Guard 23446 | -3/Quarantine | Found Transdimensional Reconstructor 23841 | -3/Quarantine | Discovered exit to Research (range 17) 23841 | -3/Quarantine | Spotted Quarantine Guard 23841 | -3/Quarantine | Spotted Quarantine Guard 23955 | -3/Quarantine | Entered Research 23955 | -2/Research | Warlord forces began assault on 0b10 23955 | -2/Research | Evolved 2 slots: Utility x2 24009 | -2/Research | Identified exit to Testing 24065 | -2/Research | Research machine network offline 24099 | -2/Research | Discovered new exit (range 16) 24104 | -2/Research | Spotted B-90 Cyclops 24221 | -2/Research | Spotted Striker 24224 | -2/Research | Spotted Executioner 24229 | -2/Research | Borebot progress halted 24272 | -2/Research | Borebot progress halted 24335 | -2/Research | Warlord destroyed during the assault 24543 | -2/Research | Spotted Striker 24594 | -2/Research | Lost 11 allies 24761 | -2/Research | Discovered new exit (range 21) 24789 | -2/Research | Build established: Scavenger-Construct 24998 | -2/Research | Spotted Striker 25033 | -2/Research | Spotted Striker 25151 | -2/Research | Spotted Striker 25161 | -2/Research | Spotted Striker 25188 | -2/Research | Spotted YK-HOC(B) 25220 | -2/Research | Lost 15 allies 25238 | -2/Research | Spotted Executioner 25242 | -2/Research | Spotted Striker 25265 | -2/Research | Destroyed Executioner 25268 | -2/Research | Destroyed Striker 25284 | -2/Research | Found Prototype Processor 25284 | -2/Research | Identified Exp. Targeting Computer 25294 | -2/Research | Found Prototype Processor 25308 | -2/Research | Identified Exp. Core Analyzer 25325 | -2/Research | Spotted Executioner 25325 | -2/Research | Spotted Striker 25334 | -2/Research | Spotted Striker 25340 | -2/Research | Entered Testing 25340 | -2/Testing | Spotted PG-8R2C1RVNVZ 25365 | -2/Testing | Rewired PG-8R2C1RVNVZ 25393 | -2/Testing | Found Prototype Ballistic Cannon 25411 | -2/Testing | Identified Perforator 25590 | -2/Testing | Found Prototype Launcher 25597 | -2/Testing | Identified Hellfire Missile Launcher 26028 | -2/Testing | Discovered new exit (range 13) 26117 | -2/Testing | Found Prototype Hackware 26131 | -2/Testing | Identified Ghost Barrier 26469 | -2/Testing | Found Prototype Protection 26473 | -2/Testing | Identified Hvy. Regenerative Plating 26552 | -2/Testing | Spotted Fortress 26609 | -2/Testing | Discovered new exit (range 6) 26612 | -2/Testing | Identified exit to Section 7 26625 | -2/Testing | Entered Section 7 26626 | -2/Section 7 | Sensed 24 artifacts in vicinity 26710 | -2/Section 7 | Discovered new exit (range 22) 26833 | -2/Section 7 | Identified exit to Access 27165 | -2/Section 7 | Found Integrated Dissipator 27165 | -2/Section 7 | Installed Integrated Dissipator, increased core heat dissipation (+20) 27180 | -2/Section 7 | Spotted Alpha 7 27199 | -2/Section 7 | Spotted S7 Guard 27208 | -2/Section 7 | Found Core Membrane 27208 | -2/Section 7 | Installed Core Membrane, gained immunity to corruption 27227 | -2/Section 7 | Spotted B-90 Cyclops 27276 | -2/Section 7 | Used Subatomic Replicator to create Supercharged Integrated Reactor 27278 | -2/Section 7 | Installed Supercharged Integrated Reactor, increased core energy generation (+15) 27583 | -2/Section 7 | Spotted Executioner 27625 | -2/Section 7 | First assault squad dispatched 27703 | -2/Section 7 | Spotted Executioner 27734 | -2/Section 7 | Destroyed Executioner 27773 | -2/Section 7 | Found Adv. Kinecellerator 27856 | -2/Section 7 | Spotted B-99 Colossus 27905 | -2/Section 7 | Found LRC Energy Well 27905 | -2/Section 7 | Installed LRC Energy Well, increased energy storage capacity (+250) 27910 | -2/Section 7 | Found LRC Insulator 27910 | -2/Section 7 | Installed LRC Insulator, gained EM resistance (25) 27913 | -2/Section 7 | Found LRC Storage 27913 | -2/Section 7 | Installed LRC Storage, increased inventory capacity (+2) 28133 | -2/Section 7 | Found Hpw. Transdimensional Reconstructor 28199 | -2/Section 7 | Entered Access 28199 | -1/Access | Spotted B-99 Colossus 28199 | -1/Access | Evolved 2 slots: Utility x2 28497 | -1/Access | Build established: Alien-Ninja 28906 | -1/Access | Destroyed 10 combat bots 29181 | -1/Access | Build established: Alien-Assassin 29230 | -1/Access | First assault squad dispatched 29257 | -1/Access | Identified exit to Command 29370 | -1/Access | Entered Command 29469 | -1/Command | Spotted M Guard 29469 | -1/Command | Spotted M Guard 29469 | -1/Command | Spotted Combat Programmer 29474 | -1/Command | Spotted Combat Programmer 29495 | -1/Command | Destroyed Combat Programmer 29517 | -1/Command | Destroyed Combat Programmer 29541 | -1/Command | Destroyed M Guard 29555 | -1/Command | Destroyed M Guard 29555 | -1/Command | All MAIN.C guards destroyed 29576 | -1/Command | Lost 4 parts (4u) 29596 | -1/Command | Found Prototype Device 29596 | -1/Command | Identified AEGIS Remote Shield 29611 | -1/Command | Found Exp. Targeting Computer 29614 | -1/Command | Found Hellfire Missile Launcher 29620 | -1/Command | First assault squad dispatched 29817 | -1/Command | Met MAIN.C 29829 | -1/Command | Destroyed MAIN.C Shell 29831 | -1/Command | MAIN.C activated Command garrisons 29835 | -1/Command | 0b10 Conduit disabled 29878 | -1/Command | Destroyed MAIN.C 29892 | -1/Command | Build established: Scavenger-Gunner 29938 | -1/Command | Discovered new exit (range 29) 29938 | -1/Command | Discovered new exit (range 106) 29938 | -1/Command | Extracted map data and part IDs from MAIN.C's data core 29941 | -1/Command | Found Exp. Targeting Computer 29944 | -1/Command | Found Zero-point Reactor 29947 | -1/Command | Destroyed 7 combat bots 30016 | -1/Command | Destroyed 8 combat bots 30038 | -1/Command | Found Gamma Refractor 30083 | -1/Command | Found Adv. Kinecellerator 30089 | -1/Command | Found Centrium Heavy Armor Plating 31721 | -1/Command | Found Centrium Heavy Armor Plating 32323 | -1/Command | Found Adv. Kinecellerator 33239 | -1/Command | Phase Generator disabled 34064 | -1/Command | Warped through subspace to slip node 34064 | -1/Command | Discovered new exit (range 4) 34078 | -1/Command | Entered Access_0 34079 | -1/Access_0 | Sensed 3 artifacts in vicinity 34080 | -1/Access_0 | Met Architect 34082 | -1/Access_0 | Architect warped through subspace 34092 | -1/Access_0 | Destroyed A8 34133 | -1/Access_0 | Architect warped through subspace 34156 | -1/Access_0 | Subspace Access Node disabled 34173 | -1/Access_0 | Architect warped through subspace 34209 | -1/Access_0 | Found Integrity Redistributor 34228 | -1/Access_0 | A6 warped into view 34230 | -1/Access_0 | Architect warped through subspace 34252 | -1/Access_0 | Destroyed A6 34261 | -1/Access_0 | Architect warped through subspace 34270 | -1/Access_0 | Subspace Access Node disabled 34291 | -1/Access_0 | Architect warped through subspace 34308 | -1/Access_0 | Architect warped through subspace 34324 | -1/Access_0 | Architect warped through subspace 34328 | -1/Access_0 | Found Exp. Powered Armor 34341 | -1/Access_0 | Architect warped through subspace 34368 | -1/Access_0 | Architect warped through subspace 34387 | -1/Access_0 | Architect warped through subspace 34409 | -1/Access_0 | Architect warped through subspace 34432 | -1/Access_0 | Architect warped through subspace 34468 | -1/Access_0 | Architect warped through subspace 34488 | -1/Access_0 | Destroyed A2 34491 | -1/Access_0 | Architect warped through subspace 34498 | -1/Access_0 | Extracted Singularity Gate Test 138-C access codes from A2's data core 34501 | -1/Access_0 | Found Exp. Targeting Computer 34503 | -1/Access_0 | Found Exp. Phase Shifter 34515 | -1/Access_0 | Architect warped through subspace 34544 | -1/Access_0 | Architect warped through subspace 34555 | -1/Access_0 | Found Prototype Device 34557 | -1/Access_0 | Found Exp. Weapon Cycler 34558 | -1/Access_0 | A5 warped into view 34564 | -1/Access_0 | Architect warped through subspace 34582 | -1/Access_0 | Architect warped through subspace 34583 | -1/Access_0 | Identified Desublimator 34609 | -1/Access_0 | Architect warped through subspace 34631 | -1/Access_0 | Architect warped through subspace 34636 | -1/Access_0 | Destroyed A5 34658 | -1/Access_0 | Architect warped through subspace 34677 | -1/Access_0 | Singularity Gate disabled 34680 | -1/Access_0 | Architect warped through subspace 34705 | -1/Access_0 | Architect warped through subspace 34723 | -1/Access_0 | Architect warped through subspace 34727 | -1/Access_0 | Found Exp. Phase Shifter 34739 | -1/Access_0 | Used Integrity Redistributor, redistributed integrity from core (-375) 34740 | -1/Access_0 | Core integrity fell below 50% 34744 | -1/Access_0 | Architect warped through subspace 34758 | -1/Access_0 | Architect warped through subspace 34777 | -1/Access_0 | Architect warped through subspace 34793 | -1/Access_0 | Architect warped through subspace 34809 | -1/Access_0 | Subspace Access Node disabled 34817 | -1/Access_0 | Architect warped through subspace 34833 | -1/Access_0 | Architect warped through subspace 34865 | -1/Access_0 | Subspace Access Node disabled 34881 | -1/Access_0 | Destroyed Architect 34889 | -1/Access_0 | Extracted unknown sensor trigger ID from Architect's data core 34892 | -1/Access_0 | Found Hpw. Transdimensional Reconstructor 34990 | -1/Access_0 | A4 warped into view 35010 | -1/Access_0 | Destroyed A4 35290 | -1/Access_0 | Found Hpw. Transdimensional Reconstructor 35530 | -1/Access_0 | Found Desublimator 35536 | -1/Access_0 | Found Exp. Phase Shifter 35682 | -1/Access_0 | Found Centrium Heavy Armor Plating 35935 | -1/Access_0 | Found Sigix Corpse 35957 | -1/Access_0 | A3 warped into view 35974 | -1/Access_0 | Destroyed A3 36505 | -1/Access_0 | Found Integrated Dissipator 36505 | -1/Access_0 | Installed Integrated Dissipator, increased core heat dissipation (+20) 36638 | -1/Access_0 | Warped through subspace to slip node 36638 | -1/Access_0 | Discovered new exit (range 8) 36639 | -1/Access_0 | Warped through subspace to slip node 36640 | -1/Access_0 | Warped through subspace to slip node 36707 | -1/Access_0 | Triggered Gamma Refractor 36718 | *** | Heading to fleet! Last Messages --------------- 36505_ Dropped AEGIS Remote Shield. 36505_ Acquired Integrated Dissipator. 36505_ Integrated Dissipator installed, core heat dissipation increased (+20). 36507_ Acquired AEGIS Remote Shield. 36638_ Warped through subspace, drawn to slip node. 36638_ EXIT=FOUND 36639_ Warped through subspace, drawn to slip node. 36642_ Acquired Adv. Weapon Cycler. 36648_ Dropped Exp. Weapon Cycler. 36648_ Dropped Adv. Kinecellerator. 36651_ Acquired Exp. Weapon Cycler. 36654_ Acquired Adv. Kinecellerator. 36657_ Dropped Gamma Refractor. 36664_ Acquired Gamma Refractor. 36673_ Dimensional Slip Node implodes. 36675_ The unstable cave ceiling collapses. 36707_ Dropped Gamma Refractor. 36707_ Triggered Gamma Refractor. 36708_ The unstable cave ceiling collapses. Map ----- +----------------------------------------------------+ | | | | | | | | | | | | | | | | | | | | | | | | | | | | | | | | | ??????? ?????? | | ??????? ?????? | | ?????? ????? | | ?????? ????? | | ????? ????? | | ????? ???? | | ????? ;;; ???? | | ???? ;; ;; ??? | | ???? ; ; ??? | | ??? ; @ ; ??? | | ??? ;; ; ??? | | ??? ; ??? | | ??? # ??? | | ??? # # ???? | | ??? # # ???? | | ??? ???? | | ??? ???? | | ??? # ???? | | ??? # ???? | | ???? ## # ????? | | ???? # ## ????? | | ????? ?????? | | ????? ;" ?????? | | ????? ;" ?????? | | ?????? "; ??????? | | ?????? ??????? | | ??????? ???????? | | ??????? ???????? | | ??????? ???????? | | ???????? ????????? | | ???????? ????????? | | ????????? ?????????? | | ?????????? ??????????? | | ???????????? ????????????? | +----------------------------------------------------+ Best States ------------- Heat Dissipation 110 Coolant Potential 120 Energy Generation 83 Energy Capacity 2081 Matter Stores 800 Matter Capacity 800 Sight Range 23 Robot Scan Range 18 Terrain Scan Density 210 Jamming Range 16 Power Amplification 40 Additional Mass Support 12 Armor Coverage 1600 Resistance: KI 30 Resistance: TH 15 Resistance: EM 25 Weapon Cycling 30 Phase Shifting 20 Evasion (%) 70 Targeting Accuracy 36 Target Analysis 8 Core Analysis 8 Armor Integrity Analysis 50 Recoil Reduction 5 Kinecelleration 50 Offensive Hacking 20 Defensive Hacking 20 Item Schematics ----------------- None Robot Schematics ------------------ None Fabricated ------------ Nothing Alien Tech Used ----------------- Core Expander High-powered Transdimensional Reconstructor Core Reset Matrix Integrated Dissipator Core Membrane Subatomic Replicator Supercharged Integrated Reactor LRC Energy Well LRC Insulator LRC Storage Transdimensional Reconstructor Integrity Redistributor Achievements -------------- None Challenges ------------ None Game ------ Seed BombardmentDeliveryMatrix Manual? 0 Play Time 05:07:17 Cumulative 1354.6 hours Start 2024.01.06 @ 12:38:27 End 2024.01.06 @ 18:12:14 Sessions 1 Manual Loads 0 Difficulty Rogue Special Mode None Game No. 976 Rogue 936 Adventurer 40 Explorer 0 Win Type 2 Total 167 Types 77/8/56/2/1/4/16/2/1 Lore% 94 Gallery% 97 Achievement% 86 Wizard Run 0 Options --------- ASCII 0 Keyboard 0 Movement Numpad Keybinds 0 Fullscreen 0 Font 20/Terminus Map View 76x50 Zoom Use 0% Tactical HUD 1 Map Filters NONE Filters NONE Steam 1 RUN: b580b859-b557-4c2f-9859-a5edb12b4738